Workbook

Sheet At a glance
B2: POLITICS AND GOVERNMENT
B4: Carika Middelberg
B6: At a glance
B8: National Assembly | C8: 2024
B9: African National Congress | C9: 159 seats out of 400 (40.18%)
B10: Democratic Alliance | C10: 87 seats (21.81%)
B11: uMkhonto weSizwe | C11: 58 seats (14.58%)
B12: Economic Freedom Fighters | C12: 39 seats (9.52%)
B13: Inkatha Freedom Party | C13: 17 seats (3.85%)
B14: African Christian Democratic Party | C14: 3 seats (0.6%)
B15: National Freedom Party | C15: 0 seats (0.12%)
B16: United Democratic Movement | C16: 3 seats (0.49%)
B17: Freedom Front Plus | C17: 6 seats (1.36%)
B18: Other | C18: 28 seats (7.49%)
B19: National Council of Provinces | C19: 2024
B20: African National Congress | C20: 43 seats out of 90 (47.78%)
B21: Democratic Alliance | C21: 20 seats (22.22%)
B22: Economic Freedom Fighters | C22: 10 seats (11.11%)
B23: uMkhonto weSizwe | C23: 9 seats (10%)
B24: Other | C24: 8 seats (8.88%)
B25: Provincial legislatures | C25: 2024
B26: African National Congress | C26: 224 seats out of 487 (59.30%)
B27: Democratic Alliance | C27: 97 seats (20.70%)
B28: uMkhonto weSizwe | C28: 58 seats (14.58%)
B29: Economic Freedom Fighters | C29: 54 seats (11.63%)
B30: Inkatha Freedom Party | C30: 16 seats (3.26%)
B31: Other | C31: 38 seats (5.12%)
B32: Local authorities | C32: 2016 | D32: 2021
B33: African National Congress | C33: 161 (out of 213) | D33: 122 (out of 213)
B34: Democratic Alliance | C34: 19 | D34: 12
B35: Inkatha Freedom Party | C35: 6 | D35: 9
B36: No overall control | C36: 27 | D36: 70
B37: Governance | C37: 2011 | D37: 2022
B38: Total number of municipalities | C38: 278 | D38: 257
B39: South Africa's ranking on the Democracy Index (2023) | C39: 47th out of 167
B40: Ranking on the Press Freedom Index (2024) | C40: 38th out of 180

Sheet POLITICAL REPRESENTATION

Sheet Political parties.prov.24
B3: POLITICAL REPRESENTATION
B5: Political parties
B7: Registered political partiesa, 2024
C9: Province | D9: Number | E9: Proportion of total | J9: Province | K9: Number
C10: Eastern Cape | D10: 196 | E10: 0.1439 | J10: EC | K10: 196
C11: Free State | D11: 87 | E11: 0.0638 | J11: FS | K11: 87
C12: Gauteng | D12: 58 | E12: 0.0425 | J12: GP | K12: 58
C13: KwaZulu-Natal | D13: 131 | E13: 0.0961 | J13: KZN | K13: 131
C14: Limpopo | D14: 160 | E14: 0.1174 | J14: LP | K14: 160
C15: Mpumalanga | D15: 148 | E15: 0.1086 | J15: MP | K15: 148
C16: North West | D16: 82 | E16: 0.0602 | J16: NW | K16: 82
C17: Northern Cape | D17: 173 | E17: 0.127 | J17: NC | K17: 173
C18: Western Cape | D18: 327 | E18: 0.24 | J18: WC | K18: 327
C19: National | D19: 380 | E19: 0.2181 | J19: National | K19: 380
C20: South Africa | D20: 1742 | E20: 1 | J20: SA | K20: 1742
C21: Source: Independent Electoral Commission (IEC), www.elections.org.za, accessed 10 June 2024
C22: a As at 10 June 2024. Any party that wants to participate in an election must register with the Independent Electoral Commission (IEC). A party may be registred at national level, which will allow it to contest elections for the National Assembly, provincial legislatures, and all municipal councils. However, a party may choose to register only at municipal level for a particular municipality or municipalities.

Sheet National Assembly.1999-2024
B2: Proportional representation and seats held by party, 1999-2024
B4: Party | C4: —1999— | E4: —2004— | G4: —2009— | I4: —2014— | K4: —2019— | M4: —2024—
C5: Seats | D5: Proportion | E5: Seats | F5: Proportion | G5: Seats | H5: Proportion | I5: Seats | J5: Proportion | K5: Seats | L5: Proportion | M5: Seats | N5: Proportion
B6: ANC | C6: 266 | D6: 0.6635 | E6: 279 | F6: 0.6969 | G6: 264 | H6: 0.659 | I6: 249 | J6: 0.6215 | K6: 230 | L6: 0.575 | M6: 159 | N6: 0.4018
B7: Al Jama-ah | C7: — | D7: — | E7: — | F7: — | G7: — | H7: — | I7: — | J7: — | K7: 1 | L7: — | M7: 2 | N7: 0.0024
B8: ACDP | C8: 6 | D8: 0.0143 | E8: 7 | F8: 0.016 | G8: 3 | H8: 0.0081 | I8: 3 | J8: 0.0057 | K8: 4 | L8: 0.0084 | M8: 3 | N8: 0.006
B9: ActionSA | C9: — | D9: — | E9: — | F9: — | G9: — | H9: — | I9: — | J9: — | K9: — | L9: — | M9: 6 | N9: 0.012
B10: AEBf | C10: 1 | D10: 0.0029 | E10: – | F10: — | G10: — | H10: — | I10: — | J10: — | K10: — | L10: — | M10: — | N10: —
B11: Agang SA | C11: — | D11: — | E11: — | F11: — | G11: — | H11: — | I11: 2 | J11: 0.0028 | K11: — | L11: — | M11: — | N11: —
B12: AICi | C12: — | D12: — | E12: — | F12: — | G12: — | H12: — | I12: 3 | J12: 0.0053 | K12: 2 | L12: — | M12: — | N12: —
B13: APCh | C13: — | D13: — | E13: — | F13: — | G13: 1 | H13: 0.002 | I13: 1 | J13: 0.0017 | K13: — | L13: — | M13: — | N13: —
B14: ATM | C14: — | D14: — | E14: — | F14: — | G14: — | H14: — | I14: — | J14: — | K14: 2 | L14: 0.0044 | M14: 2 | N14: 0.004
B15: Azapog | C15: 1 | D15: 0.0017 | E15: 1 | F15: 0.0025 | G15: 1 | H15: 0.0022 | I15: — | J15: — | K15: — | L15: — | M15: — | N15: —
B16: BOSA | C16: — | D16: — | E16: — | F16: — | G16: — | H16: — | I16: — | J16: — | K16: — | L16: — | M16: 2 | N16: 0.0041
B17: CCC | C17: — | D17: — | E17: — | F17: — | G17: — | H17: — | I17: — | J17: — | K17: — | L17: — | M17: 2 | N17: 0.0023
B18: COPE | C18: — | D18: — | E18: — | F18: — | G18: 30 | H18: 0.0742 | I18: 3 | J18: 0.0067 | K18: 2 | L18: 0.0027 | M18: 0 | N18: 0.0009
B19: DA/DPb | C19: 38 | D19: 0.0956 | E19: 50 | F19: 0.1237 | G19: 67 | H19: 0.1666 | I19: 89 | J19: 0.2223 | K19: 84 | L19: 0.2077 | M19: 87 | N19: 0.2181
B20: EFF | C20: — | D20: — | E20: — | F20: — | G20: — | H20: — | I20: 25 | J20: 0.0635 | K20: 44 | L20: 0.108 | M20: 39 | N20: 0.0952
B21: FAe | C21: 2 | D21: 0.0054 | E21: – | F21: – | G21: — | H21: — | I21: — | J21: — | K21: — | L21: — | M21: — | N21: —
B22: FF+ | C22: 3 | D22: 0.008 | E22: 4 | F22: 0.0089 | G22: 4 | H22: 0.0083 | I22: 4 | J22: 0.009 | K22: 10 | L22: 0.0238 | M22: 6 | N22: 0.0136
B23: GOOD | C23: — | D23: — | E23: — | F23: — | G23: — | H23: — | I23: — | J23: — | K23: 2 | L23: 0.004 | M23: 1 | N23: 0.0018
B24: IDc | C24: — | D24: — | E24: 7 | F24: 0.0173 | G24: 4 | H24: 0.0092 | I24: — | J24: — | K24: — | L24: — | M24: — | N24: —
B25: IFP | C25: 34 | D25: 0.0858 | E25: 28 | F25: 0.0697 | G25: 18 | H25: 0.0455 | I25: 10 | J25: 0.024 | K25: 14 | L25: 0.0338 | M25: 17 | N25: 0.0385
B26: MF | C26: 1 | D26: 0.003 | E26: 2 | F26: 0.0035 | G26: 1 | H26: 0.0025 | I26: — | J26: — | K26: — | L26: — | M26: — | N26: —
B27: MK | C27: — | D27: — | E27: — | F27: — | G27: — | H27: — | I27: — | J27: — | K27: — | L27: — | M27: 58 | N27: 0.1458
B28: NFP | C28: — | D28: — | E28: — | F28: — | G28: — | H28: — | I28: 6 | J28: 0.0157 | K28: 2 | L28: 0.0035 | M28: 0 | N28: 0.0012
B29: NP/NNPa | C29: 28 | D29: 0.0687 | E29: 7 | F29: 0.0165 | G29: — | H29: — | I29: — | J29: — | K29: — | L29: — | M29: — | N29: —
B30: PA | C30: — | D30: — | E30: — | F30: — | G30: — | H30: — | I30: — | J30: — | K30: — | L30: — | M30: 9 | N30: 0.0206
B31: PAC | C31: 3 | D31: 0.0071 | E31: 3 | F31: 0.0073 | G31: 1 | H31: 0.0027 | I31: 1 | J31: 0.0021 | K31: 1 | L31: 0.0019 | M31: 1 | N31: 0.0023
B32: RISE | C32: — | D32: — | E32: — | F32: — | G32: — | H32: — | I32: — | J32: — | K32: — | L32: — | M32: 2 | N32: 0.0042
B33: UAT | C33: — | D33: — | E33: – | F33: — | G33: — | H33: — | I33: — | J33: — | K33: — | L33: — | M33: 1 | N33: 0.0022
B34: UCDPd | C34: 3 | D34: 0.0078 | E34: 3 | F34: 0.0075 | G34: 2 | H34: 0.0037 | I34: — | J34: — | L34: — | M34: — | N34: —
B35: UDM | C35: 14 | D35: 0.0342 | E35: 9 | F35: 0.0228 | G35: 4 | H35: 0.0085 | I35: 4 | J35: 0.01 | K35: 2 | L35: 0.0045 | M35: 3 | N35: 0.0049
B36: Totalj | C36: =SUM(C6:C35) -> 400 | D36: 1 | E36: =SUM(E6:E35) -> 400 | F36: 1 | G36: =SUM(G6:G35) -> 400 | H36: 1 | I36: =SUM(I6:I35) -> 400 | J36: 1 | K36: =SUM(K6:K35) -> 400 | L36: =SUM(L6:L35) -> 0.9777 | M36: =SUM(M6:M35) -> 400 | N36: 1
B37: Source: IEC, www.elections.org.za, accessed 10 June 2024
B38: a National Party/New National Party.
B39: b In June 2000, the Democratic Party (DP) became the Democratic Alliance (DA).
B40: c Independent Democrats.
B41: d United Christian Democratic Party.
B42: e Federal Alliance.
B43: f Afrikaner Eenheidsbeweging.
B44: g Azanian People's Organisation.
B45: h African People's Convention.
B46: i African Independent Congress.
B47: j Proportions may not add up vertically, owing to rounding and the exclusion of 'Other'.

Sheet Parliament

Sheet National election.2024
A2: Parliament
A4: The National Assembly
A6: Seats currently helda
B8: Proportional representation and seats held by party after the 2024 national election
B10: Political party | C10: Number of seats won | D10: Proportion of total vote
B11: African National Congress (ANC) | C11: 159 | D11: 0.4018
B12: Democratic Alliance (DA) | C12: 87 | D12: 0.2181 | AL12: Note: IEC source on National Assembly Vote and Seat summary appears to be wrong. Write to IEC
B13: uMkhonto weSizwe (MK) | C13: 58 | D13: 0.1458
B14: Economic Freedom Fighters (EFF) | C14: 39 | D14: 0.0952 | AL14: https://www.elections.org.za/content/NPEPublicReports/699/Seat%20Calculation/National.pdf
B15: Inkatha Freedom Party (IFP) | C15: 17 | D15: 0.0385
B16: Patriotic Alliance (PA) | C16: 9 | D16: 0.0206
B17: Freedom Front Plus (FF+) | C17: 6 | D17: 0.0136
B18: ActionSA | C18: 6 | D18: 0.0126
B19: United Democratic Movement (UDM) | C19: 3 | D19: 0.0049
B20: African Christian Democratic Party (ACDP) | C20: 3 | D20: 0.006 | AL20: DA: Changed proportion to match actual proportion on IEC website, not own calculation as previously.
B21: RISE Mzansi | C21: 2 | D21: 0.0042
B22: Cape Coloured Congress (CCC) | C22: 2 | D22: 0.0023
B23: Build One South Africa (BOSA) | C23: 2 | D23: 0.0041
B24: African Transformation Movement (ATM) | C24: 2 | D24: 0.004
B25: Al Jama-ah | C25: 2 | D25: 0.0024
B26: Pan Africanist Congress of Azania (PAC) | C26: 1 | D26: 0.0023
B27: GOOD | C27: 1 | D27: 0.0018 | AL27: Data taken from dashboard: https://www.elections.org.za/NPEDashboard/app/dashboard.html
B28: United Africans Transformation (UAT) | C28: 1 | D28: 0.0022
B29: Total | C29: =SUM(C11:C28) -> 400 | D29: 1
B30: Source:IEC, www.elections.org.za, accessed 10 June 2024
A31: a Seats held after the 2024 national and provincial elections. The South African electoral system at national and provincial level works on a purely proportional representation basis, by-elections are never held. If a Member of Parliament or member one of the nine provincial legislatures should resign or pass away, they are simply replaced by the next candidate on the party list.

Sheet National election.2024.PC
B2: Proportional representation after the 2024 national election
B3: ANC | C3: 0.4018
B4: DA | C4: 0.2181
B5: EFF | C5: 0.0952
B6: IFP | C6: 0.0385
B7: FF+ | C7: 0.0136
B8: MK | C8: 0.1458
B9: Other | C9: =SUM(100%-(C3+C4+C5+C6+C7+C8)) -> 0.087

Sheet NCOP delegates.2024.
A2: The National Council of Provinces
A5: Delegates to the National Council of Provinces after the 2024 provincial elections
A7: Province | B7: ANC | C7: DA | D7: EFF | E7: IFP | F7: MK | G7: PA | H7: UDM | I7: ActionSA | J7: FF+ | K7: Total
A8: Eastern Cape | B8: 6 | C8: 2 | D8: 1 | E8: 0 | F8: 0 | G8: 0 | H8: 1 | I8: 0 | J8: 0 | K8: =SUM(B8:J8) -> 10
A9: Free State | B9: 5 | C9: 2 | D9: 1 | E9: 0 | F9: 1 | G9: 0 | H9: 0 | I9: 0 | J9: 1 | K9: 10
A10: Gauteng | B10: 4 | C10: 3 | D10: 1 | E10: 0 | F10: 1 | G10: 0 | H10: 0 | I10: 1 | J10: 0 | K10: 10
A11: KwaZulu-Natal | B11: 2 | C11: 1 | D11: 0 | E11: 2 | F11: 5 | G11: 0 | H11: 0 | I11: 0 | J11: 0 | K11: 10
A12: Limpopo | B12: 8 | C12: 1 | D12: 1 | E12: 0 | F12: 0 | G12: 0 | H12: 0 | I12: 0 | J12: 0 | K12: 10
A13: Mpumalanga | B13: 5 | C13: 1 | D13: 2 | E13: 0 | F13: 2 | G13: 0 | H13: 0 | I13: 0 | J13: 0 | K13: 10
A14: North West | B14: 6 | C14: 2 | D14: 2 | E14: 0 | F14: 0 | G14: 0 | H14: 0 | I14: 0 | J14: 0 | K14: 10
A15: Northern Cape | B15: 5 | C15: 2 | D15: 1 | E15: 0 | F15: 0 | G15: 1 | H15: 0 | I15: 0 | J15: 1 | K15: 10
A16: Western Cape | B16: 2 | C16: 6 | D16: 1 | E16: 0 | F16: 0 | G16: 1 | H16: 0 | I16: 0 | J16: 0 | K16: 10
A17: South Africa | B17: =SUM(B8:B16) -> 43 | C17: 20 | D17: 10 | E17: 2 | F17: =SUM(F8:F16) -> 9 | G17: =SUM(G8:G16) -> 2 | H17: =SUM(H8:H16) -> 1 | I17: =SUM(I8:I16) -> 1 | J17: 2 | K17: =SUM(B17:J17) -> 90
A18: Source: Parliament of South Africa, www.parliament.gov.za, accessed 16 July 2024
A19: a There are 54 permanent delegates — six (6) from each province— in the National Council of Provinces (NCOP). There are also 36 special delegates — four (4) from each province— in the NCOP. All delegates are headed by a provincial premier or a member of the provincial legislature designated by the premier. Selection is based on proportional representation from party lists in the respective provinces.

Sheet NCOP delegates.24.PC
B4: Delegates to the National Council of Provinces after the 2024 provincial elections
B6: Province | C6: ANC | D6: ActionSA | E6: DA | F6: EFF | G6: IFP | H6: FF+ | I6: MK | J6: PA | K6: UDM | L6: Total
B7: Eastern Cape | C7: 6 | D7: 0 | E7: 2 | F7: 1 | G7: 0 | H7: 0 | I7: 0 | J7: 0 | K7: 1 | L7: =SUM(C7:K7) -> 10
B8: Free State | C8: 5 | D8: 0 | E8: 2 | F8: 1 | G8: 0 | H8: 1 | I8: 1 | J8: 0 | K8: 0 | L8: 10
B9: Gauteng | C9: 4 | D9: 1 | E9: 3 | F9: 1 | G9: 0 | H9: 0 | I9: 1 | J9: 0 | K9: 0 | L9: 10
B10: KwaZulu-Natal | C10: 2 | D10: 0 | E10: 1 | F10: 0 | G10: 2 | H10: 0 | I10: 5 | J10: 0 | K10: 0 | L10: 10
B11: Limpopo | C11: 8 | D11: 0 | E11: 1 | F11: 1 | G11: 0 | H11: 0 | I11: 0 | J11: 0 | K11: 0 | L11: 10
B12: Mpumalanga | C12: 5 | D12: 0 | E12: 1 | F12: 2 | G12: 0 | H12: 0 | I12: 2 | J12: 0 | K12: 0 | L12: 10
B13: North West | C13: 6 | D13: 0 | E13: 2 | F13: 2 | G13: 0 | H13: 0 | I13: 0 | J13: 0 | K13: 0 | L13: 10
B14: Northern Cape | C14: 5 | D14: 0 | E14: 2 | F14: 1 | G14: 0 | H14: 1 | I14: 0 | J14: 1 | K14: 0 | L14: 10
B15: Western Cape | C15: 2 | D15: 0 | E15: 6 | F15: 1 | G15: 0 | H15: 0 | I15: 0 | J15: 1 | K15: 0 | L15: 10
B16: South Africa | C16: =SUM(C7:C15) -> 43 | D16: =SUM(D7:D15) -> 1 | E16: 20 | F16: 10 | G16: 2 | H16: 2 | I16: =SUM(I7:I15) -> 9 | J16: =SUM(J7:J15) -> 2 | K16: 1 | L16: 90
C17: =(C16/L16) -> 0.4777777778 | D17: =(D16/L16) -> 0.01111111111 | E17: =(E16/L16) -> 0.2222222222 | F17: =(F16/L16) -> 0.1111111111 | G17: =(G16/L16) -> 0.02222222222 | H17: =(H16/L16) -> 0.02222222222 | I17: =(I16/L16) -> 0.1 | J17: =(J16/L16) -> 0.02222222222 | K17: =(K16/L16) -> 0.01111111111

Sheet NCOP.1994-2024
A2: National Council of Provinces: seats held over time, 1994-2024
B4: —Eastern Cape— | I4: —Free State— | P4: —Gauteng—
A5: Party | B5: 1994 | C5: 1999 | D5: 2004 | E5: 2009 | F5: 2014 | G5: 2019 | H5: 2024 | I5: 1994 | J5: 1999 | K5: 2004 | L5: 2009 | M5: 2014 | N5: 2019 | O5: 2024 | P5: 1994 | Q5: 1999 | R5: 2004 | S5: 2009 | T5: 2014 | U5: 2019 | V5: 2024
A6: ANC | B6: 9 | C6: 7 | D6: 8 | E6: 7 | F6: 7 | G6: 7 | H6: 6 | I6: 8 | J6: 8 | K6: 8 | L6: 7 | M6: 7 | N6: 6 | O6: 5 | P6: 8 | Q6: 8 | R6: 8 | S6: 7 | T6: 7 | U6: 5 | V6: 4
A7: DA/DP | B7: — | C7: 1 | D7: 1 | E7: 1 | F7: 2 | G7: 2 | H7: 2 | I7: — | J7: 1 | K7: 1 | L7: 1 | M7: 2 | N7: 2 | O7: 2 | P7: — | Q7: 1 | R7: 1 | S7: 1 | T7: 2 | U7: 3 | V7: 3
A8: EFF | B8: — | C8: — | D8: — | E8: — | F8: — | G8: 1 | H8: 1 | I8: — | J8: — | K8: — | L8: — | M8: 1 | N8: 1 | O8: 1 | P8: — | Q8: — | R8: — | S8: — | T8: 1 | U8: 2 | V8: 1
A9: IFP | B9: — | C9: — | D9: — | E9: — | F9: — | G9: — | H9: — | I9: — | J9: — | K9: — | L9: — | M9: — | N9: — | O9: — | P9: — | Q9: — | R9: — | S9: — | T9: — | U9: — | V9: —
A10: NFP | B10: — | C10: ‒ | D10: ‒ | E10: ‒ | F10: ‒ | G10: — | H10: — | I10: — | J10: — | K10: — | L10: — | M10: — | N10: — | O10: — | P10: — | Q10: — | R10: — | S10: — | T10: — | U10: — | V10: —
A11: UDM | B11: — | C11: 2 | D11: 1 | E11: 1 | F11: 1 | G11: — | H11: 1 | I11: 1 | J11: — | K11: ‒ | L11: ‒ | M11: — | N11: — | O11: — | P11: 1 | Q11: — | R11: — | S11: — | T11: — | U11: — | V11: —
A12: FF+ | B12: — | C12: — | D12: — | E12: — | F12: — | G12: — | H12: — | I12: — | J12: — | K12: 1 | L12: 1 | M12: — | N12: 1 | O12: 1 | P12: — | Q12: — | R12: 1 | S12: 1 | T12: — | U12: — | V12: —
A13: COPE | B13: — | C13: — | D13: — | E13: 1 | F13: — | G13: — | H13: — | I13: — | J13: — | K13: — | L13: 1 | M13: — | N13: — | O13: — | P13: — | Q13: — | R13: — | S13: 1 | T13: — | U13: — | V13: —
A14: Other | B14: 1 | C14: — | D14: — | E14: — | F14: — | G14: — | H14: — | I14: 1 | J14: 1 | K14: — | L14: — | M14: — | N14: — | O14: 1 | P14: 1 | Q14: 1 | R14: — | S14: — | T14: — | U14: — | V14: 2
A15: Total | B15: =SUM(B6:B14) -> 10 | C15: 10 | D15: 10 | E15: 10 | F15: 10 | G15: 10 | H15: =SUM(H6:H14) -> 10 | I15: 10 | J15: 10 | K15: 10 | L15: 10 | M15: 10 | N15: 10 | O15: =SUM(O6:O14) -> 10 | P15: 10 | Q15: 10 | R15: 10 | S15: 10 | T15: 10 | U15: 10 | V15: =SUM(V6:V14) -> 10
B16: —KwaZulu-Natal— | I16: —Limpopo— | P16: —Mpumalanga—
A17: Party | B17: 1994 | C17: 1999 | D17: 2004 | E17: 2009 | F17: 2014 | G17: 2019 | H17: 2024 | I17: 1994 | J17: 1999 | K17: 2004 | L17: 2009 | M17: 2014 | N17: 2019 | O17: 2024 | P17: 1994 | Q17: 1999 | R17: 2004 | S17: 2009 | T17: 2014 | U17: 2019 | V17: 2024
A18: ANC | B18: 9 | C18: 7 | D18: 8 | E18: 7 | F18: 7 | G18: 6 | H18: 2 | I18: 8 | J18: 8 | K18: 8 | L18: 7 | M18: 7 | N18: 8 | O18: 8 | P18: 8 | Q18: 8 | R18: 8 | S18: 7 | T18: 7 | U18: 7 | V18: 5
A19: DA/DP | B19: — | C19: 1 | D19: 1 | E19: 1 | F19: 2 | G19: 1 | H19: 1 | I19: — | J19: 1 | K19: 1 | L19: 1 | M19: 2 | N19: 1 | O19: 1 | P19: — | Q19: 1 | R19: 1 | S19: 1 | T19: 2 | U19: 1 | V19: 1
A20: EFF | B20: — | C20: — | D20: — | E20: — | F20: — | G20: 1 | H20: — | I20: — | J20: — | K20: — | L20: — | M20: 1 | N20: 1 | O20: 1 | P20: — | Q20: — | R20: — | S20: — | T20: 1 | U20: 1 | V20: 2
A21: IFP | B21: — | C21: — | D21: — | E21: — | F21: — | G21: 2 | H21: 2 | I21: — | J21: — | K21: — | L21: — | M21: — | N21: — | O21: — | P21: — | Q21: — | R21: — | S21: — | T21: — | U21: — | V21: —
A22: NFP | B22: — | C22: — | D22: — | E22: — | F22: — | G22: — | H22: — | I22: — | J22: — | K22: — | L22: — | M22: — | N22: — | O22: — | P22: — | Q22: — | R22: — | S22: — | T22: — | U22: — | V22: —
A23: UDM | B23: — | C23: 2 | D23: 1 | E23: 1 | F23: 1 | G23: — | H23: — | I23: 1 | J23: — | K23: — | L23: — | M23: — | N23: — | O23: — | P23: 1 | Q23: — | R23: — | S23: — | T23: — | U23: — | V23: —
A24: FF+ | B24: — | C24: — | D24: — | E24: — | F24: — | G24: — | H24: — | I24: — | J24: — | K24: 1 | L24: 1 | M24: — | N24: — | O24: — | P24: — | Q24: — | R24: 1 | S24: 1 | T24: — | U24: 1 | V24: —
A25: COPE | B25: — | C25: — | D25: — | E25: 1 | F25: — | G25: — | H25: — | I25: — | J25: — | K25: — | L25: 1 | M25: — | N25: — | O25: — | P25: — | Q25: — | R25: — | S25: 1 | T25: — | U25: — | V25: —
A26: Other | B26: 1 | C26: — | D26: — | E26: — | F26: — | G26: — | H26: 5 | I26: 1 | J26: 1 | K26: — | L26: — | M26: — | N26: — | O26: — | P26: 1 | Q26: 1 | R26: — | S26: ‒ | T26: — | U26: — | V26: 2
A27: Total | B27: =SUM(B18:B26) -> 10 | C27: 10 | D27: 10 | E27: 10 | F27: 10 | G27: 10 | H27: =SUM(H18:H26) -> 10 | I27: 10 | J27: 10 | K27: 10 | L27: 10 | M27: 10 | N27: 10 | O27: =SUM(O18:O26) -> 10 | P27: 10 | Q27: 10 | R27: 10 | S27: 10 | T27: 10 | U27: 10 | V27: =SUM(V18:V26) -> 10
B28: —North West— | I28: —Northern Cape— | P28: —Western Cape—
A29: Party | B29: 1994 | C29: 1999 | D29: 2004 | E29: 2009 | F29: 2014 | G29: 2019 | H29: 2024 | I29: 1994 | J29: 1999 | K29: 2004 | L29: 2009 | M29: 2014 | N29: 2019 | O29: 2024 | P29: 1994 | Q29: 1999 | R29: 2004 | S29: 2009 | T29: 2014 | U29: 2019 | V29: 2024
A30: ANC | B30: 9 | C30: 7 | D30: 8 | E30: 7 | F30: 7 | G30: 6 | H30: 6 | I30: 8 | J30: 8 | K30: 8 | L30: 7 | M30: 7 | N30: 6 | O30: 5 | P30: 8 | Q30: 8 | R30: 8 | S30: 7 | T30: 7 | U30: 3 | V30: 2
A31: DA/DP | B31: — | C31: 1 | D31: 1 | E31: 1 | F31: 2 | G31: 1 | H31: 2 | I31: — | J31: 1 | K31: 1 | L31: 1 | M31: 2 | N31: 3 | O31: 2 | P31: — | Q31: 1 | R31: 1 | S31: 1 | T31: 2 | U31: 6 | V31: 6
A32: EFF | B32: — | C32: — | D32: — | E32: — | F32: — | G32: 2 | H32: 2 | I32: — | J32: — | K32: — | L32: — | M32: 1 | N32: 1 | O32: 1 | P32: — | Q32: — | R32: — | S32: — | T32: 1 | U32: 1 | V32: 1
A33: IFP | B33: — | C33: — | D33: — | E33: — | F33: — | G33: — | H33: — | I33: — | J33: — | K33: — | L33: — | M33: — | N33: — | O33: — | P33: — | Q33: — | R33: — | S33: — | T33: — | U33: — | V33: —
A34: NFP | B34: — | C34: — | D34: — | E34: — | F34: — | G34: — | H34: — | I34: — | J34: — | K34: — | L34: — | M34: — | N34: — | O34: — | P34: — | Q34: — | R34: — | S34: — | T34: — | U34: — | V34: —
A35: UDM | B35: — | C35: 2 | D35: 1 | E35: 1 | F35: 1 | G35: ‒ | H35: — | I35: 1 | J35: — | K35: ‒ | L35: ‒ | M35: — | N35: — | O35: — | P35: 1 | Q35: — | R35: — | S35: — | T35: — | U35: — | V35: —
A36: FF+ | B36: — | C36: — | D36: — | E36: — | F36: — | G36: 1 | H36: — | I36: — | J36: — | K36: 1 | L36: 1 | M36: — | N36: — | O36: 1 | P36: — | Q36: — | R36: 1 | S36: 1 | T36: — | U36: — | V36: —
A37: COPE | B37: — | C37: — | D37: — | E37: 1 | F37: — | G37: ‒ | H37: — | I37: — | J37: — | K37: — | L37: 1 | M37: — | N37: — | O37: — | P37: — | Q37: — | R37: — | S37: 1 | T37: — | U37: — | V37: —
A38: Other | B38: 1 | C38: — | D38: — | E38: — | F38: — | G38: ‒ | H38: — | I38: 1 | J38: 1 | K38: — | L38: — | M38: — | N38: — | O38: 1 | P38: 1 | Q38: 1 | R38: — | S38: — | T38: — | U38: — | V38: 1
A39: Total | B39: =SUM(B30:B38) -> 10 | C39: 10 | D39: 10 | E39: 10 | F39: 10 | G39: 10 | H39: =SUM(H30:H38) -> 10 | I39: 10 | J39: 10 | K39: 10 | L39: 10 | M39: 10 | N39: 10 | O39: =SUM(O30:O38) -> 10 | P39: 10 | Q39: 10 | R39: 10 | S39: 10 | T39: 10 | U39: 10 | V39: =SUM(V30:V38) -> 10
A40: Source: IEC, www.elections.org.za, accessed 9 July 2024

Sheet Provinces

Sheet Prov legislature seats.2024
A2: Provincial legislatures
A4: Seats currently held
A6: Seats held in provincial legislaturesa after the 2024 provincial elections
A8: Party | B8: EC | C8: FS | D8: GAU | E8: KZN | F8: LIM | G8: MPU | H8: NW | I8: NC | J8: WC | K8: SA | Q8: Seats | R8: Percentage
A9: ACDP | B9: 0 | C9: 0 | D9: 1 | E9: 0 | F9: 0 | G9: 0 | H9: 0 | I9: 0 | J9: 1 | K9: =SUM(B9:J9) -> 2 | P9: ANC | Q9: 224 | R9: =(Q9/Q19) -> 0.4599589322
A10: ACT | B10: 0 | C10: 1 | D10: 0 | E10: 0 | F10: 0 | G10: 0 | H10: 0 | I10: 0 | J10: 0 | K10: 1 | P10: MK | Q10: 48
A11: ActionSA | B11: 0 | C11: 0 | D11: 3 | E11: 0 | F11: 0 | G11: 1 | H11: 1 | I11: 0 | J11: 0 | K11: 5
A12: ANC | B12: 45 | C12: 16 | D12: 28 | E12: 14 | F12: 48 | G12: 27 | H12: 23 | I12: 15 | J12: 8 | K12: 224 | P12: DA | Q12: 97 | R12: =(Q12/Q19) -> 0.1991786448
A13: Al Jama-ah | B13: 0 | C13: 0 | D13: 0 | E13: 0 | F13: 0 | G13: 0 | H13: 0 | I13: 0 | J13: 1 | K13: 1 | P13: EFF | Q13: 54 | R13: =(Q13/Q19) -> 0.1108829569
A14: ATMb | B14: 1 | C14: 0 | D14: 0 | E14: 0 | F14: 0 | G14: 0 | H14: 0 | I14: 0 | J14: 0 | K14: 1 | P14: IFP | Q14: 16 | R14: =(Q14/Q19) -> 0.03285420945
A15: BOSA | B15: 0 | C15: 0 | D15: 1 | E15: 0 | F15: 0 | G15: 0 | H15: 0 | I15: 0 | J15: 0 | K15: 1
A16: CCC | B16: 0 | C16: 0 | D16: 0 | E16: 0 | F16: 0 | G16: 0 | H16: 0 | I16: 0 | J16: 1 | K16: 1
A17: GOOD | B17: 0 | C17: 0 | D17: 0 | E17: 0 | F17: 0 | G17: 0 | H17: 0 | I17: 0 | J17: 1 | K17: 1 | P17: VF+ | Q17: 9 | R17: =(Q17/Q19) -> 0.01848049281
A18: DA | B18: 11 | C18: 7 | D18: 22 | E18: 11 | F18: 4 | G18: 6 | H18: 5 | I18: 7 | J18: 24 | K18: 97 | P18: Other | Q18: 28 | R18: =(Q18/Q19) -> 0.05749486653
A19: EFF | B19: 8 | C19: 4 | D19: 11 | E19: 2 | F19: 9 | G19: 7 | H19: 7 | I19: 4 | J19: 2 | K19: 54 | P19: Total | Q19: 487
A20: FF+ | B20: 1 | C20: 1 | D20: 2 | E20: 0 | F20: 1 | G20: 1 | H20: 1 | I20: 1 | J20: 1 | K20: 9
A21: IFP | B21: 0 | C21: 0 | D21: 1 | E21: 15 | F21: 0 | G21: 0 | H21: 0 | I21: 0 | J21: 0 | K21: 16
A22: MFc | B22: 0 | C22: 0 | D22: 0 | E22: 0 | F22: 0 | G22: 0 | H22: 0 | I22: 0 | J22: 0 | K22: 0
A23: MK | B23: 1 | C23: 1 | D23: 8 | E23: 37 | F23: 1 | G23: 9 | H23: 1 | I23: 0 | J23: 0 | K23: 58
A24: RISE | B24: 0 | C24: 0 | D24: 1 | E24: 0 | F24: 0 | G24: 0 | H24: 0 | I24: 0 | J24: 0 | K24: 1
A25: PA | B25: 2 | C25: 0 | D25: 2 | E25: 0 | F25: 0 | G25: 0 | H25: 0 | I25: 3 | J25: 3 | K25: 10
A26: NFP | B26: 0 | C26: 0 | D26: 0 | E26: 1 | F26: 0 | G26: 0 | H26: 0 | I26: 0 | J26: 0 | K26: 1
A27: UAT | B27: 0 | C27: 0 | D27: 0 | E27: 0 | F27: 1 | G27: 0 | H27: 0 | I27: 0 | J27: 0 | K27: 1
A28: UDM | B28: 3 | C28: 0 | D28: 0 | E28: 0 | F28: 0 | G28: 0 | H28: 0 | I28: 0 | J28: 0 | K28: 3
A29: Total | B29: =SUM(B9:B28) -> 72 | C29: 30 | D29: 80 | E29: 80 | F29: 64 | G29: 51 | H29: 38 | I29: 30 | J29: 42 | K29: 487
A30: Source: IEC, www.elections.org.za, accessed 11 June 2024
A31: a Each of the nine provincial legislatures has between 30 and 90 seats, depending on the number of people who live in the province.
A32: b African Transformation Movement.
A33: c Minority Front.

Sheet Prov legislature seats. 94-24
A2: Provincial legislatures: seats held over time, 1994-2024
A4: Province | B4: —1994—
B5: ANC | C5: NP | D5: IFP | E5: FF+ | F5: DA/DP | G5: Other | H5: Total
A6: Eastern Cape | B6: 48 | C6: 6 | D6: — | E6: — | F6: 1 | G6: 1 | H6: =SUM(B6:G6) -> 56
A7: Free State | B7: 24 | C7: 4 | D7: — | E7: 2 | F7: — | G7: — | H7: 30
A8: Gauteng | B8: 50 | C8: 21 | D8: 3 | E8: 5 | F8: 5 | G8: 2 | H8: 86
A9: KwaZulu-Natal | B9: 26 | C9: 9 | D9: 41 | E9: ‒ | F9: 2 | G9: 3 | H9: 81
A10: Limpopo | B10: 38 | C10: 1 | D10: — | E10: 1 | F10: — | G10: — | H10: 40
A11: Mpumalanga | B11: 25 | C11: 3 | D11: — | E11: 2 | F11: — | G11: — | H11: 30
A12: North West | B12: 26 | C12: 3 | D12: — | E12: 1 | F12: — | G12: — | H12: 30
A13: Northern Cape | B13: 15 | C13: 12 | D13: — | E13: 2 | F13: 1 | G13: — | H13: 30
A14: Western Cape | B14: 14 | C14: 23 | D14: — | E14: 1 | F14: 3 | G14: 1 | H14: 42
A15: South Africa | B15: =SUM(B6:B14) -> 266 | C15: =SUM(C6:C14) -> 82 | D15: =SUM(D6:D14) -> 44 | E15: =SUM(E6:E14) -> 14 | F15: =SUM(F6:F14) -> 12 | G15: 7 | H15: =SUM(H6:H14) -> 425
A16: a National Party.
A17: Province | B17: —1999—
B18: ANC | C18: NNPb | D18: IFP | E18: DA/DP | F18: UDM | G18: FF+ | H18: Other | I18: Total
A19: Eastern Cape | B19: 47 | C19: 2 | D19: — | E19: 4 | F19: 9 | G19: — | H19: 1 | I19: =SUM(B19:H19) -> 63
A20: Free State | B20: 25 | C20: 2 | D20: — | E20: 2 | F20: — | G20: 1 | H20: — | I20: 30
A21: Gauteng | B21: 50 | C21: 3 | D21: 3 | E21: 13 | F21: 1 | G21: 1 | H21: 2 | I21: 73
A22: KwaZulu-Natal | B22: 32 | C22: 3 | D22: 34 | E22: 7 | F22: 1 | G22: — | H22: 3 | I22: 80
A23: Limpopo | B23: 44 | C23: 1 | D23: — | E23: 1 | F23: 1 | G23: — | H23: 2 | I23: 49
A24: Mpumalanga | B24: 26 | C24: 1 | D24: — | E24: 1 | F24: 1 | G24: 1 | H24: — | I24: 30
A25: North West | B25: 27 | C25: 1 | D25: — | E25: 1 | F25: — | G25: 1 | H25: 3 | I25: 33
A26: Northern Cape | B26: 20 | C26: 8 | D26: — | E26: 1 | F26: — | G26: 1 | H26: — | I26: 30
A27: Western Cape | B27: 18 | C27: 17 | D27: — | E27: 5 | F27: 1 | G27: ‒ | H27: 1 | I27: 42
A28: South Africa | B28: =SUM(B19:B27) -> 289 | C28: 38 | D28: 37 | E28: 35 | F28: 14 | G28: 5 | H28: 12 | I28: =SUM(I19:I27) -> 430
A29: b New National Party.
A30: Province | B30: —2004—
B31: ANC | C31: DA | D31: IFP | E31: UDM | F31: ACDP | G31: NNPb | H31: IDc | I31: Other | J31: Total
A32: Eastern Cape | B32: 51 | C32: 5 | D32: — | E32: 6 | F32: — | G32: — | H32: — | I32: 1 | J32: =SUM(B32:I32) -> 63
A33: Free State | B33: 25 | C33: 3 | D33: — | E33: — | F33: 1 | G33: — | H33: — | I33: 1 | J33: 30
A34: Gauteng | B34: 51 | C34: 15 | D34: 2 | E34: 1 | F34: 1 | G34: — | H34: 1 | I34: 2 | J34: 73
A35: KwaZulu-Natal | B35: 38 | C35: 7 | D35: 30 | E35: 1 | F35: 2 | G35: — | H35: — | I35: 2 | J35: 80
A36: Limpopo | B36: 45 | C36: 2 | D36: — | E36: 1 | F36: 1 | G36: — | H36: — | I36: ‒ | J36: 49
A37: Mpumalanga | B37: 27 | C37: 2 | D37: — | E37: — | F37: — | G37: — | H37: — | I37: 1 | J37: 30
A38: North West | B38: 27 | C38: 2 | D38: — | E38: — | F38: — | G38: — | H38: — | I38: 4 | J38: 33
A39: Northern Cape | B39: 21 | C39: 3 | D39: — | E39: — | F39: 1 | G39: 2 | H39: 2 | I39: 1 | J39: 30
A40: Western Cape | B40: 19 | C40: 12 | D40: — | E40: 1 | F40: 2 | G40: 5 | H40: 3 | I40: ‒ | J40: 42
A41: South Africa | B41: =SUM(B32:B40) -> 304 | C41: 51 | D41: 32 | E41: 10 | F41: 8 | G41: 7 | H41: 6 | I41: 12 | J41: =SUM(J32:J40) -> 430
A42: c Independent Democrats.
A43: Province | B43: —2009—
B44: ANC | C44: DA | D44: COPE | E44: IFP | F44: ACDP | G44: AIC | H44: IDc | I44: Other | J44: Total
A45: Eastern Cape | B45: 44 | C45: 6 | D45: 9 | E45: — | F45: — | G45: 1 | H45: — | I45: 3 | J45: =SUM(B45:I45) -> 63
A46: Free State | B46: 22 | C46: 3 | D46: 4 | E46: — | F46: — | G46: — | H46: — | I46: 1 | J46: 30
A47: Gauteng | B47: 47 | C47: 16 | D47: 6 | E47: 1 | F47: 1 | G47: — | H47: 1 | I47: 1 | J47: 73
A48: KwaZulu-Natal | B48: 51 | C48: 7 | D48: 1 | E48: 18 | F48: 1 | G48: — | H48: ‒ | I48: 2 | J48: 80
A49: Limpopo | B49: 43 | C49: 2 | D49: 4 | E49: — | F49: — | G49: — | H49: — | I49: — | J49: 49
A50: Mpumalanga | B50: 27 | C50: 2 | D50: 1 | E50: — | F50: — | G50: — | H50: — | I50: — | J50: 30
A51: North West | B51: 25 | C51: 3 | D51: 3 | E51: — | F51: — | G51: — | H51: — | I51: 2 | J51: 33
A52: Northern Cape | B52: 19 | C52: 4 | D52: 5 | E52: — | F52: — | G52: — | H52: 2 | I52: — | J52: 30
A53: Western Cape | B53: 14 | C53: 22 | D53: 3 | E53: — | F53: 1 | G53: — | H53: 2 | I53: — | J53: 42
A54: South Africa | B54: =SUM(B45:B53) -> 292 | C54: 65 | D54: 36 | E54: 19 | F54: 3 | G54: 1 | H54: 5 | I54: 9 | J54: 430
A56: Province | B56: —2014—
B57: ANC | C57: DA | D57: COPE | E57: IFP | F57: ACDP | G57: AIC | H57: EFF | I57: Other | J57: Total
A58: Eastern Cape | B58: 45 | C58: 10 | D58: 1 | E58: — | F58: — | G58: 1 | H58: 2 | I58: 5 | J58: =SUM(B58:I58) -> 64
A59: Free State | B59: 22 | C59: 5 | D59: 0 | E59: — | F59: — | G59: — | H59: 2 | I59: 1 | J59: 30
A60: Gauteng | B60: 40 | C60: 23 | D60: 0 | E60: 1 | F60: — | G60: — | H60: 8 | I60: 2 | J60: 74
A61: KwaZulu-Natal | B61: 52 | C61: 10 | D61: 0 | E61: 9 | F61: — | G61: — | H61: 2 | I61: 5 | J61: 78
A62: Limpopo | B62: 39 | C62: 3 | D62: 1 | E62: — | F62: — | G62: — | H62: 6 | I62: — | J62: 49
A63: Mpumalanga | B63: 24 | C63: 3 | D63: 0 | E63: — | F63: — | G63: — | H63: 2 | I63: 1 | J63: 30
A64: North West | B64: 23 | C64: 4 | D64: 0 | E64: — | F64: — | G64: — | H64: 5 | I64: 1 | J64: 33
A65: Northern Cape | B65: 20 | C65: 7 | D65: 1 | E65: — | F65: — | G65: — | H65: 2 | I65: — | J65: 30
A66: Western Cape | B66: 14 | C66: 26 | D66: 0 | E66: — | F66: 1 | G66: — | H66: 1 | I66: — | J66: 42
A67: South Africa | B67: =SUM(B58:B66) -> 279 | C67: 91 | D67: 3 | E67: 10 | F67: 1 | G67: 1 | H67: 30 | I67: 15 | J67: 430
A69: Province | B69: —2019—
B70: ANC | C70: DA | D70: COPE | E70: IFP | F70: ACDP | G70: FF+ | H70: EFF | I70: Other | J70: Total
A71: Eastern Cape | B71: 44 | C71: 10 | D71: 0 | E71: 0 | F71: 0 | G71: 1 | H71: 5 | I71: 3 | J71: =SUM(B71:I71) -> 63
A72: Free State | B72: 19 | C72: 6 | D72: 0 | E72: 0 | F72: 0 | G72: 1 | H72: 4 | I72: 0 | J72: 30
A73: Gauteng | B73: 37 | C73: 20 | D73: 0 | E73: 1 | F73: 1 | G73: 3 | H73: 11 | I73: 0 | J73: 73
A74: KwaZulu-Natal | B74: 44 | C74: 11 | D74: 0 | E74: 13 | F74: 1 | G74: 0 | H74: 8 | I74: 3 | J74: 80
A75: Limpopo | B75: 38 | C75: 3 | D75: 0 | E75: 0 | F75: 0 | G75: 1 | H75: 7 | I75: 0 | J75: 49
A76: Mpumalanga | B76: 22 | C76: 3 | D76: 0 | E76: 0 | F76: 0 | G76: 1 | H76: 4 | I76: 0 | J76: 30
A77: North West | B77: 21 | C77: 4 | D77: 0 | E77: 0 | F77: 0 | G77: 2 | H77: 6 | I77: 0 | J77: 33
A78: Northern Cape | B78: 18 | C78: 8 | D78: 0 | E78: 0 | F78: 0 | G78: 1 | H78: 3 | I78: 0 | J78: 30
A79: Western Cape | B79: 12 | C79: 24 | D79: 0 | E79: 0 | F79: 1 | G79: 1 | H79: 2 | I79: 2 | J79: 42
A80: South Africa | B80: =SUM(B71:B79) -> 255 | C80: =SUM(C71:C79) -> 89 | D80: 0 | E80: =SUM(E71:E79) -> 14 | F80: =SUM(F71:F79) -> 3 | G80: =SUM(G71:G79) -> 11 | H80: =SUM(H71:H79) -> 50 | I80: =SUM(I71:I79) -> 8 | J80: 430
A81: Source: IEC, www.elections.org.za, accessed 11 June 2024
A83: Province | B83: —2024—
B84: ANC | C84: DA | D84: COPE | E84: IFP | F84: ACDP | G84: FF+ | H84: EFF | I84: Other | J84: Total
A85: Eastern Cape | B85: 45 | C85: 11 | D85: 0 | E85: 0 | F85: 0 | G85: 1 | H85: 8 | I85: 7 | J85: =SUM(B85:I85) -> 72
A86: Free State | B86: 16 | C86: 7 | D86: 0 | E86: 0 | F86: 0 | G86: 0 | H86: 4 | I86: 3 | J86: 30
A87: Gauteng | B87: 28 | C87: 22 | D87: 0 | E87: 1 | F87: 1 | G87: 2 | H87: 11 | I87: 15 | J87: 80
A88: KwaZulu-Natal | B88: 14 | C88: 11 | D88: 0 | E88: 15 | F88: 0 | G88: 0 | H88: 2 | I88: 38 | J88: 80
A89: Limpopo | B89: 48 | C89: 4 | D89: 0 | E89: 0 | F89: 0 | G89: 1 | H89: 9 | I89: 2 | J89: 64
A90: Mpumalanga | B90: 27 | C90: 6 | D90: 0 | E90: 0 | F90: 0 | G90: 1 | H90: 7 | I90: 10 | J90: 51
A91: North West | B91: 23 | C91: 5 | D91: 0 | E91: 0 | F91: 0 | G91: 1 | H91: 7 | I91: 2 | J91: 38
A92: Northern Cape | B92: 15 | C92: 7 | D92: 0 | E92: 0 | F92: 0 | G92: 1 | H92: 4 | I92: 3 | J92: 30
A93: Western Cape | B93: 8 | C93: 24 | D93: 0 | E93: 0 | F93: 1 | G93: 1 | H93: 2 | I93: 6 | J93: 42
A94: South Africa | B94: =SUM(B85:B93) -> 224 | C94: =SUM(C85:C93) -> 97 | D94: 0 | E94: 16 | F94: 2 | G94: 8 | H94: 54 | I94: 86 | J94: =SUM(J85:J93) -> 487
A95: Source: IEC, www.elections.org.za, accessed 11 June 2024

Sheet Local government

Sheet Municipalities.2011.2022
A2: Local authorities
A4: All municipalities
A6: Municipalitiesa by province, 2011 and 2022
A8: Province | B8: Year | C8: Category Ab (Metropolitan) | D8: Category Bc (Local) | E8: Category Cd (District) | F8: Total | G8: Change
A9: Eastern Cape | B9: 2011 | C9: 2 | D9: 37 | E9: 6 | F9: 45 | G9: Yes
B10: 2022 | C10: 2 | D10: 31 | E10: 6 | F10: =SUM(C10:E10) -> 39
A11: Free State | B11: 2011 | C11: 1 | D11: 19 | E11: 4 | F11: 24 | G11: Yes
B12: 2022 | C12: 1 | D12: 18 | E12: 4 | F12: =SUM(C12:E12) -> 23
A13: Gauteng | B13: 2011 | C13: 3 | D13: 7 | E13: 2 | F13: 12 | G13: Yes
B14: 2022 | C14: 3 | D14: 6 | E14: 2 | F14: =SUM(C14:E14) -> 11
A15: KwaZulu-Natal | B15: 2011 | C15: 1 | D15: 50 | E15: 10 | F15: 61 | G15: Yes
B16: 2022 | C16: 1 | D16: 43 | E16: 10 | F16: =SUM(C16:E16) -> 54
A17: Limpopo | B17: 2011 | C17: 0 | D17: 25 | E17: 5 | F17: 30 | G17: Yes
B18: 2022 | C18: 0 | D18: 22 | E18: 5 | F18: 27
A19: Mpumalanga | B19: 2011 | C19: 0 | D19: 18 | E19: 3 | F19: 21 | G19: Yes
B20: 2022 | C20: 0 | D20: 17 | E20: 3 | F20: 20
A21: North West | B21: 2011 | C21: 0 | D21: 19 | E21: 4 | F21: 23 | G21: Yes
B22: 2022 | C22: 0 | D22: 18 | E22: 4 | F22: =SUM(D22:E22) -> 22
A23: Northern Cape | B23: 2011 | C23: 0 | D23: 27 | E23: 5 | F23: 32 | G23: Yes
B24: 2022 | C24: 0 | D24: 26 | E24: 5 | F24: =SUM(D24:E24) -> 31
A25: Western Cape | B25: 2011 | C25: 1 | D25: 24 | E25: 5 | F25: 30 | G25: No
B26: 2022 | C26: 1 | D26: 24 | E26: 5 | F26: =SUM(C26:E26) -> 30
A27: South Africa | B27: 2011 | C27: 8 | D27: 226 | E27: 44 | F27: 278 | G27: —
B28: 2022 | C28: 8 | D28: 205 | E28: 44 | F28: =SUM(C28:E28) -> 257
A29: Source: The Municipal Demarcation Board, www.demarcation.org.za, MEC Publication of the number of councillors, accessed 26 November 2022
A30: a The figures in this table are based on demarcation proposals made by the Municipal Demarcation Board before the 2016 municipal elections. At the time of going to print, not all of the planned amalgamations had been implemented.
A31: b Category A or Metropolitan municipalities have exclusive executive and legislative authority in their areas. They have the following features: areas of high population density; intense movement of people, goods and services; extensive development, and multiple business districts and industrial areas. Centres of complex and diverse economic activity are also key components of Category A municipalities.
A32: c Category B or Local municipalities share municipal executive and legislative authority with the district municipality under which they fall.
A33: d Category C or District municipalities have municipal executive and legislative authority in an area that includes more than one municipality.
A34: Municipal boundaries are determined by the Municipal Demarcation Board. The Board's status as an independent authority is also protected by Section 3 of the Local Government Municipal Demarcation Act of 1998.

Sheet Ward.PR party representation.21
B2: Party representation
B4: Ward and proportional representation votes by party, 2021
C6: Party | D6: Votesa | E6: Proportion
C7: ASAᵇ | D7: 547905 | E7: 0.0233
C8: ANC | D8: 10699300 | E8: 0.4559
C9: DA | D9: 5082763 | E9: 0.2166
C10: EFF | D10: 2420101 | E10: 0.1031
C11: IFP | D11: 1324287 | E11: 0.0564
C12: FF+ | D12: 549877 | E12: 0.0234
C13: UDM | D13: 111201 | E13: 0.0047
C14: COPE | D14: 47528 | E14: 0.002
C15: ACDP | D15: 185413 | E15: 0.0079
C16: PAc | D16: 226859 | E16: 0.0097
C17: Other | D17: 2271903 | E17: 0.097
C18: Total | D18: =SUM(D7:D17) -> 23467137 | E18: 1
B19: Source: IEC, www.elections.org.za, accessed 23 November 2021
B20: a Votes refer to both proportional representation votes and ward votes. The total number of votes received will therefore be greater than the number of voters.
B21: b ActionSA.
B22: c Patriotic Alliance.

Sheet Party representation.21.PC
C1: Ward and proportional representation votes by party, 2021
B4: ASA | C4: 0.0233
B5: ANC | C5: 0.4559
B6: DA | C6: 0.2166
B7: EFF | C7: 0.1031
B8: IFP | C8: 0.0564
B9: FF+ | C9: 0.0234
B10: UDM | C10: 0.0047
B11: Cope | C11: 0.002
B12: ACDP | C12: 0.0079
B13: PA | C13: 0.0097
B14: Other | C14: 0.097
C15: =SUM(C4:C14) -> 1

Sheet Ward representation.2000-21
A2: Ward and proportional representation votes by party, 2000-21
A4: Party | B4: —2000— | D4: —2006— | F4: —2011— | H4: —2016— | J4: —2021—
B5: Votesa | C5: Proportion | D5: Votesa | E5: Proportion | F5: Votesa | G5: Proportion | H5: Votesa | I5: Proportion | J5: Votesa | K5: Proportion
A6: ACDP | B6: 195142 | C6: 0.0085 | D6: 241488 | E6: 0.0092 | F6: 165602 | G6: 0.0062 | H6: 124431 | I6: 0.0042 | J6: 185415 | K6: 0.0079
A7: ANC | B7: 13986930 | C7: 0.6114 | D7: 17466423 | E7: 0.6634 | F7: 16548970 | G7: 0.6195 | H7: 16103198 | I7: 0.5391 | J7: 10699300 | K7: 0.4559
A8: ASA | B8: — | C8: — | D8: — | E8: — | F8: — | G8: — | H8: — | I8: — | J8: 547905 | K8: 0.0233
A9: Azapo | B9: 37984 | C9: 0.0017 | D9: 47401 | E9: 0.0018 | F9: 50631 | G9: 0.0019 | H9: 19927 | I9: 0.0007 | J9: 13573 | K9: 0.0006
A10: COPE | B10: N/A | C10: N/A | D10: N/A | E10: N/A | F10: 570703 | G10: 0.0214 | H10: 130371 | I10: 0.0044 | J10: 47525 | K10: 0.002
A11: DA | B11: 4678310 | C11: 0.2045 | D11: 3862357 | E11: 0.1467 | F11: 6393890 | G11: 0.2394 | H11: 8033631 | I11: 0.269 | J11: 5082664 | K11: 0.2166
A12: EFF | B12: N/A | C12: N/A | D12: N/A | E12: N/A | F12: N/A | G12: N/A | H12: 2447352 | I12: 0.0819 | J12: 2400101 | K12: 0.1031
A13: FF+ | B13: 13442 | C13: 0.0006 | D13: 189921 | E13: 0.0072 | F13: 120519 | G13: 0.0045 | H13: 229281 | I13: 0.0077 | J13: 549858 | K13: 0.0234
A14: IFP | B14: 2226106 | C14: 0.0973 | D14: 2100609 | E14: 0.0798 | F14: 954021 | G14: 0.0357 | H14: 1268824 | I14: 0.0425 | J14: 1324287 | K14: 0.0564
A15: Independent | B15: 52159 | C15: 0.0023 | D15: 125725 | E15: 0.0048 | F15: N/A | G15: N/A | H15: N/A | I15: N/A | J15: 406135 | K15: 0.0173
A16: PAC | B16: 290096 | C16: 0.0127 | D16: 233667 | E16: 0.0089 | F16: 118671 | G16: 0.0044 | H16: 57978 | I16: 0.0019 | J16: 56215 | K16: 0.0024
A17: UCDPb | B17: 245321 | C17: 0.0107 | D17: 171175 | E17: 0.0065 | F17: 51002 | G17: 0.0019 | H17: N/A | I17: N/A | J17: 18695 | K17: 0.0008
A18: UDM | B18: 545775 | C18: 0.0239 | D18: 285441 | E18: 0.0108 | F18: 168351 | G18: 0.0063 | H18: 167623 | I18: 0.0056 | J18: 111201 | K18: 0.0047
A19: UIFc | B19: 1124 | C19: 0 | D19: 43959 | E19: 0.0017 | F19: N/A | G19: N/A | H19: N/A | I19: N/A | J19: N/A | K19: N/A
A20: Other | B20: 595233 | C20: 0.0266 | D20: 1030983 | E20: 0.0391 | F20: 1394580 | G20: 0.0347 | H20: 1287230 | I20: 0.043 | J20: 2024258 | K20: 0.0856
A21: Totald | B21: 22867622 | C21: 1 | D21: 25799149 | E21: 1 | F21: =SUM(F6:F20) -> 26536940 | G21: 1 | H21: 29869846 | I21: 1 | J21: 23467132 | K21: 1
A22: Source: IEC, www.elections.org.za, accessed 23 August 2016; IEC, www.elections.org.za, accessed 23 November 2021
A23: a These are the total ward and proportional representation votes.
A24: b United Christian Democratic Party.
A25: c United Independent Front.
A26: d Proportions should add up vertically but may not, owing to rounding
A27: N/A — Not available.
A42: Dates | C42: Party | D42: Registered voters | E42: Total valid votes | F42: %
A43: 2022-02-11
B44: eThekwini | D44: 16492 | E44: 2615
C45: ACDP | E45: 1085 | F45: 0.4149
C46: ANC | E46: 1085
C47: ASA
C48: Azapo
C49: COPE
C50: DA | E50: 576
C51: EFF | E51: 530
C52: FF+
C53: IFP | E53: 345
C54: Independent
C55: PAC
C56: UCDPb
C57: UDM
C58: UIFc
C59: Other
A62: Dates | C62: Party | E62: Valid votes | F62: %
A63: 2022-02-02

Sheet Metro representation.21
A2: Metropolitan municipalities
A4: Votes by party in the eight metropolitan municipalities, 2021
A6: Party | B6: Buffalo City (East London) | C6: Cape Town | D6: Ekurhuleni (East Rand) | E6: Johannesburg | F6: Mangaung (Bloemfontein) | G6: Nelson Mandela Bay (Port Elizabeth) | H6: eThekwini (Durban) | I6: Tshwane (Pretoria) | J6: Total
A7: ASA | B7: — | C7: — | D7: 39089 | E7: 128986 | F7: — | G7: — | H7: 11663 | I7: 53712 | J7: =SUM(D7:I7) -> 233450
A8: ANC | B8: 105038 | C8: 167843 | D8: 254782 | E8: 313387 | F8: 87100 | G8: 103104 | H8: 324137 | I8: 231520 | J8: =SUM(B8:I8) -> 1586911
A9: DA | B9: 35195 | C9: 524373 | D9: 194739 | E9: 247533 | F9: 45482 | G9: 104520 | H9: 198433 | I9: 217190 | J9: =SUM(B9:I9) -> 1567465
A10: EFF | B10: 21165 | C10: 37233 | D10: 92919 | E10: 102751 | F10: 19681 | G10: 16803 | H10: 78748 | I10: 73605 | J10: =SUM(B10:I10) -> 442905
A11: GOOD | B11: 356 | C11: 35678 | D11: — | E11: 3684 | F11: — | G11: 1485 | H11: 1192 | I11: 1131 | J11: =SUM(B11:I11) -> 43526
A12: IFP | B12: — | C12: 95 | D12: 8335 | E12: 21743 | F12: — | G12: — | H12: 51725 | I12: 596 | J12: 82494
A13: FF+ | B13: 914 | C13: 14681 | D13: 21330 | E13: 12428 | F13: 7970 | G13: 3968 | H13: 1954 | I13: 53506 | J13: =SUM(B13:I13) -> 116751
A14: ACDP | B14: 991 | C14: 21621 | D14: 5524 | E14: 9999 | F14: 1292 | G14: 4317 | H14: 6022 | I14: 6281 | J14: 56047
A15: COPE | B15: 86 | C15: 677 | D15: 1511 | E15: 2297 | F15: 276 | G15: 651 | H15: 182 | I15: 1351 | J15: 7031
A16: UDM | B16: 1476 | C16: 2476 | D16: 1428 | E16: 2291 | F16: — | G16: 2665 | H16: — | I16: 494 | J16: 10830
A17: PA | B17: 351 | C17: — | D17: 12630 | E17: 26830 | F17: 3196 | G17: 3724 | H17: 993 | I17: 3525 | J17: 51249
A18: Other | B18: 14457 | C18: 102624 | D18: 37610 | E18: 50536 | F18: 10080 | G18: 21365 | H18: 100966 | I18: 29692 | J18: 367330
A19: Total | B19: =SUM(B8:B18) -> 180029 | C19: =SUM(C8:C18) -> 907301 | D19: =SUM(D7:D18) -> 669897 | E19: =SUM(E7:E18) -> 922465 | F19: =SUM(F8:F18) -> 175077 | G19: =SUM(G8:G18) -> 262602 | H19: =SUM(H7:H18) -> 776015 | I19: =SUM(I7:I18) -> 672603 | J19: 4565989
A20: Source: IEC, www.elections.org.za, accessed 23 November 2021

Sheet Council control by party.00-21
A2: Control of councils
A4: Councils controlled by party, 2000-21
A6: Party | B6: —2000— | D6: —2006— | F6: —2007— | H6: —2009— | J6: —2013b— | L6: —2014— | N6: —2016— | P6: —2021—
A7: ANC | B7: 234 | C7: =234/B15 -> 0.823943662 | D7: 229 | E7: =(D7/284) -> 0.8063380282 | F7: 232 | G7: =(F7/F15) -> 0.8226950355 | H7: 223 | I7: =(H7/H15) -> 0.7879858657 | J7: 188 | K7: 0.803 | L7: 232 | M7: =(L7/278) -> 0.8345323741 | N7: 161 | O7: =N7/N15 -> 0.7558685446 | P7: 122 | Q7: =P7/P15 -> 0.5727699531
A8: DA | B8: 10 | C8: =(B8/B15) -> 0.03521126761 | D8: 6 | E8: =(D8/284) -> 0.02112676056 | F8: 7 | G8: =(F8/F15) -> 0.02482269504 | H8: 7 | I8: =(H8/H15) -> 0.02473498233 | J8: 13 | K8: 0.056 | L8: 21 | M8: =(L8/278) -> 0.07553956835 | N8: 19 | O8: =N8/N15 -> 0.08920187793 | P8: 12 | Q8: =P8/P15 -> 0.05633802817
A9: EFF | B9: — | C9: — | D9: — | E9: — | F9: — | G9: — | H9: — | I9: — | J9: — | K9: — | L9: — | M9: — | N9: 0 | O9: =N9/N15 -> 0 | P9: 0 | Q9: =P9/P15 -> 0
A10: IFP | B10: 40 | C10: =(B10/B15) -> 0.1408450704 | D10: 30 | E10: =(D10/284) -> 0.1056338028 | F10: 29 | G10: =(F10/F15) -> 0.1028368794 | H10: 28 | I10: =(H10/H15) -> 0.09893992933 | J10: 4 | K10: 0.017 | L10: 3 | M10: =(L10/278) -> 0.01079136691 | N10: 6 | O10: =N10/N15 -> 0.02816901408 | P10: 9 | Q10: =P10/P15 -> 0.04225352113
A11: NFP | B11: — | C11: 0 | D11: — | E11: 0 | F11: — | G11: 0 | H11: — | I11: — | J11: 1 | K11: 0.004 | L11: 2 | M11: =L11/278 -> 0.007194244604 | N11: 0 | O11: =N11/N15 -> 0 | P11: 0 | Q11: =P11/P15 -> 0
A12: ASA | B12: — | C12: 0 | D12: — | E12: 0 | F12: — | G12: 0 | H12: — | I12: — | J12: — | K12: — | L12: 1 | M12: =L12/278 -> 0.003597122302 | N12: 0 | O12: =N12/N15 -> 0 | P12: 0 | Q12: =P12/P15 -> 0
A13: Unaccounted-for councils | B13: — | C13: 0 | D13: 19 | E13: =(D13/284) -> 0.06690140845 | F13: 10 | G13: =(F13/F15) -> 0.03546099291 | H13: — | I13: — | J13: 0 | K13: — | L13: 0 | M13: 0 | N13: 0 | O13: 0 | P13: 0 | Q13: 0
A14: No majoritya | B14: — | C14: 0 | D14: — | E14: 0 | F14: 4 | G14: =(F14/F15) -> 0.01418439716 | H14: 25 | I14: =H14/H15 -> 0.08833922261 | J14: 28 | K14: 0.12 | L14: 19c | M14: 0.0683 | N14: 27 | O14: =N14/N15 -> 0.1267605634 | P14: 70 | Q14: =P14/P15 -> 0.3286384977
A15: Total | B15: 284 | C15: =SUM(C7:C14) -> 1 | D15: 284 | E15: =SUM(E7:E14) -> 1 | F15: 282 | G15: 1 | H15: 283 | I15: =SUM(I7:I14) -> 1 | J15: 234 | K15: 1 | L15: 278 | M15: =SUM(M7:M14) -> 0.9999546763 | N15: 213 | O15: =SUM(O7:O14) -> 1 | P15: 213 | Q15: =SUM(Q7:Q14) -> 1
A16: Source: IEC, www.elections.org.za accessed 24 August 2016; email communication, 20 September 2013; The Gaffney Group, Gaffney’s Local Government in South Africa, 2009–2011;Gaffney’s Local Government in South Africa, 2013–2015; email communication, 3 November 2011; Yes! Media, The Local Government Handbook South Africa 2013: A Complete Guide to Municipalities in South Africa, Third edition, January 2013, IEC, www.elections.org.za accessed 3 December 2021
A17: a This indicates that no single party had more than 50% of the seats in a council. In such instances, coalitions may be formed between parties. This table does not take into coalitions into account.
A18: b As at September 2013.
A19: c There were 19 coalitions formed.

Sheet By-elections.24
B3: Ward seats held, gained, and losta by party in the local government by-elections, 2024
L4: Hold | M4: Gain | N4: Loss | O4: Net
B5: Party | C5: Holdb | D5: Gainc | E5: Lossd | F5: Nete | K5: ANC | L5: 107 | M5: 8 | N5: 39 | O5: -31
B6: ANC | C6: 107 | D6: 8 | E6: 39 | F6: -31 | K6: Al Jama-ah | L6: 0 | M6: 0 | N6: 1 | O6: -1
B7: IFP | C7: 16 | D7: 22 | E7: 2 | F7: 20 | K7: DA | L7: 45 | M7: 9 | N7: 7 | O7: 2
B8: NFP | C8: 1 | D8: 1 | E8: 0 | F8: 1 | K8: EFF | L8: 1 | M8: 10 | N8: 1 | O8: 9
B9: African United Movement | C9: 0 | D9: 1 | E9: 1 | F9: 0 | K9: FF+ | L9: 0 | M9: 1 | N9: 0 | O9: 0
B10: Independent | C10: 0 | D10: 2 | E10: 3 | F10: -1 | K10: IFP | L10: 16 | M10: 22 | N10: 2 | O10: 20
B11: DA | C11: 45 | D11: 9 | E11: 7 | F11: 2 | K11: Independent | L11: 0 | M11: 2 | N11: 3 | O11: -1
B12: EFF | C12: 1 | D12: 10 | E12: 1 | F12: 9 | K12: KGP | L12: 0 | M12: 0 | N12: 1 | O12: -1
B13: PA | C13: 0 | D13: 7 | E13: 3 | F13: 4 | K13: NFP | L13: 1 | M13: 1 | N13: 0 | O13: 1
B14: KGP | C14: 0 | D14: 0 | E14: 1 | F14: -1 | K14: PA | L14: 0 | M14: 7 | N14: 3 | O14: 4
B15: Al Jama-ah | C15: 0 | D15: 0 | E15: 1 | F15: -1
B16: FF+ | C16: 0 | D16: 1 | E16: 1 | F16: 0
B17: TSSA | C17: 1 | D17: 0 | E17: 0 | F17: 0
B18: CRFA | C18: 1 | D18: 1 | E18: 0 | F18: 1
B19: GOOD | C19: 0 | D19: 0 | E19: 3 | F19: -3
B20: MK | C20: 0 | D20: 1 | E20: 0 | F20: 1
B21: ABC | C21: 0 | D21: 0 | E21: 1 | F21: -1
B22: Source: IEC, www.elections.org.za, accessed 9 July 2024
B25: a As at 20 June 2024.
B26: c 'Gain' refers to seats that were won by parties in a by-election. For example, the NFP won one seat held in by-elections since the 2021 local government elections.
B27: d 'Loss' refers to seats lost by parties which were defending a seat but lost it in the by-election.
B28: e 'Net' refers to the difference between seats gained and lost.
B39: Party | C39: Holdb | D39: Gainc | E39: Lossd | F39: Nete | H39: ANC gain from DA | I39: 1
B40: ANC | C40: 20 | D40: 1 | E40: 2 | F40: 19 | H40: EFF Gain from ANC | I40: 1
B41: Al Jama-ah
B42: AUM
B43: DA | C43: 2 | E43: 1 | F43: 1
B44: EFF | D44: 1
B45: FF+
B46: IFP | D46: 1
B47: Independent
B48: KGP
B49: NFP
B50: PA

Sheet VOTERS AND VOTING

Sheet Voters by age.24
B2: VOTERS AND VOTING
B4: Voter registration
B6: All voters by age, 2024
D8: Proportion eligible by age groupb | E8: —Registeredc— | H8: Proportion eligible registeredd | I8: Proportion registered by age groupe
B9: Age group | C9: Eligiblea | E9: Male | F9: Female | G9: Total
B10: 18-19 | C10: 2104472 | D10: =(C10/Total895663) -> 0.05055057503 | E10: 226065 | F10: 299031 | G10: =SUM(E10:F10) -> 525096 | H10: =(G10/C10) -> 0.2495143675 | I10: =(G10/Total854253) -> 0.01897553449
B11: 20-29 | C11: 9693345 | D11: =(C11/Total895663) -> 0.2328394788 | E11: 1956685 | F11: 2398085 | G11: 4354770 | H11: =(G11/C11) -> 0.4492535858 | I11: =(G11/Total854253) -> 0.1573694874
B12: 30-39 | C12: 10870403 | D12: 0.2611130594 | E12: 3142227 | F12: 3651207 | G12: 6793434 | H12: 0.6249477595 | I12: 0.2454961401
B13: 40-49 | C13: 7861296 | D13: 0.1888326541 | E13: 2854719 | F13: 3145524 | G13: 6000243 | H13: 0.7632638435 | I13: 0.2168323849
B14: 50-59 | C14: 5198722 | D14: 0.1248761621 | E14: 2065385 | F14: 2504565 | G14: 4569950 | H14: 0.8790525825 | I14: 0.1651455045
B15: 60-69 | C15: 3440146 | D15: 0.08263419921 | E15: 1322637 | F15: 1811426 | G15: 3134063 | H15: 0.9110261599 | I15: 0.1132564723
B16: 70-79 | C16: 1817552 | D16: 0.0436585988 | E16: 585477 | F16: 949407 | G16: 1534884 | H16: 0.8444787274 | I16: 0.05546651333
B17: 80+ | C17: 645084 | D17: 0.01549527252 | E17: 205832 | F17: 505871 | G17: 711703 | H17: 1.103271822 | I17: 0.02571900152
B18: Total | C18: =SUM(C10:C17) -> 41631020 | D18: 1 | E18: 12384101 | F18: 15288163 | G18: 27672264 | H18: =(G18/C18) -> 0.6647030027 | I18: 1
B19: Source: IEC, www.elections.org.za, accessed 16 July 2024; Stats SA, Mid-year population estimates 2022, Country projection by population group, sex and age (2023-2027), accessed 11 June 2024.
B20: a To be eligible to vote, a person must be 18 years of age or older. As at June 2024.
B21: b The proportion of all eligible voters each age group represents. For example, 1.5% of all eligible voters are aged 80 or older.
B22: c As at June 2024.
B23: d The proportion of people in each age group who are registered to vote. Therefore, 5.1% of all people aged between 18 and 19 are registered. A possible reason for the low registration figures for the 18-19 age group could be that they came of age in between national elections and have not yet felt it necessary to register.
B24: e The proportion of registered voters each age group accounts for. For example, 1.9% of all registered voters are 18-19 year-olds.
B25: f There are more people aged 80 and above who are registered to vote than are currently alive. Figures were obtained from the Independent IEC. A possible reason for the discrepancy in this age group, could relate to non-reporting of deaths of people in this age category.

Sheet Voters by age&province.24
C2: Voters by age and province, 2024
C4: —Eastern Cape—
C5: Age group | D5: Eligiblea | E5: Registeredb | F5: Proportion eligible registered | G5: Proportion registered by age group
C6: 18-19 | D6: 238040 | E6: 80863 | F6: =(E6/D6) -> 0.3397034112 | G6: =(E6/E14) -> 0.02361330975
C7: 20-29 | D7: 846829 | E7: 557061 | F7: =(E7/D7) -> 0.6578199377 | G7: =(E7/E14) -> 0.1626708624
C8: 30-39 | D8: 977278 | E8: 777355 | F8: =E8/D8 -> 0.7954287316 | G8: =(E8/E14) -> 0.2270002894
C9: 40-49 | D9: 734172 | E9: 669751 | F9: =(E9/D9) -> 0.9122535319 | G9: =(E9/E14) -> 0.1955781732
C10: 50-59 | D10: 527504 | E10: 539940 | F10: 1.023575177 | G10: =(E10/E14) -> 0.1576712522
C11: 60-69 | D11: 407582 | E11: 436715 | F11: 1.071477641 | G11: =(E11/E14) -> 0.1275278751
C12: 70-79 | D12: 241238 | E12: 228352 | F12: 0.9465838715 | G12: =(E12/E14) -> 0.06668249395
C13: 80+ | D13: 139718 | E13: 134430 | F13: 0.9621523354 | G13: =(E13/E14) -> 0.03925574403
C14: Total | D14: =SUM(D6:D13) -> 4112361 | E14: =SUM(E6:E13) -> 3424467 | F14: 0.8327252885 | G14: 1
C15: —Free State—
C16: Age group | D16: Eligiblea | E16: Registeredb | F16: Proportion eligible registered | G16: Proportion registered by age group
C17: 18-19 | D17: 105894 | E17: 20414 | F17: =(E17/D17) -> 0.1927776833 | G17: =(E17/E25) -> 0.01407582494
C18: 20-29 | D18: 449108 | E18: 203199 | F18: 0.4524501902 | G18: =(E18/E25) -> 0.1401094128
C19: 30-39 | D19: 491055 | E19: 357436 | F19: 0.7278940241 | G19: =(E19/E25) -> 0.2464586344
C20: 40-49 | D20: 366969 | E20: 321682 | F20: 0.8765917557 | G20: =(E20/E25) -> 0.2218056
C21: 50-59 | D21: 257715 | E21: 250510 | F21: 0.9720427604 | G21: =(E21/E25) -> 0.1727312092
C22: 60-69 | D22: 173849 | E22: 177454 | F22: 1.020736386 | G22: =(E22/E25) -> 0.1223577662
C23: 70-79 | D23: 93809 | E23: 85054 | F23: 0.9066720677 | G23: =(E23/E25) -> 0.05864628267
C24: 80+ | D24: 28805 | E24: 34539 | F24: 1.199062663 | G24: =(E24/E25) -> 0.02381526979
C25: Total | D25: =SUM(D17:D24) -> 1967204 | E25: =SUM(E17:E24) -> 1450288 | F25: 0.7372331492 | G25: =SUM(G17:G24) -> 1
C26: —Gauteng—
C27: Age group | D27: Eligiblea | E27: Registeredb | F27: Proportion eligible registered | G27: Proportion registered by age group
C28: 18-19 | D28: 523445 | E28: 91732 | F28: =(E28/D28) -> 0.175246683 | G28: =(E28/E36) -> 0.01406193832
C29: 20-29 | D29: 2951441 | E29: 909304 | F29: 0.3080881508 | G29: =(E29/E36) -> 0.1393905809
C30: 30-39 | D30: 3336794 | E30: 1610759 | F30: 0.4827265333 | G30: =(E30/E36) -> 0.246919218
C31: 40-49 | D31: 2321567 | E31: 1553027 | F31: 0.6689563558 | G31: =(E31/E36) -> 0.2380692658
C32: 50-59 | D32: 1469948 | E32: 1186895 | F32: 0.8074401271 | G32: =(E32/E36) -> 0.1819435343
C33: 60-69 | D33: 933824 | E33: 728406 | F33: 0.7800249298 | G33: =(E33/E36) -> 0.1116600559
C34: 70-79 | D34: 461033 | E34: 321823 | F34: 0.6980476452 | G34: =(E34/E36) -> 0.04933344064
C35: 80+ | D35: 105727 | E35: 121479 | F35: 1.148987487 | G35: =(E35/E36) -> 0.01862196622
C36: Total | D36: =SUM(D28:D35) -> 12103779 | E36: =SUM(E28:E35) -> 6523425 | F36: 0.538957709 | G36: =SUM(G28:G35) -> 1
C37: —KwaZulu-Natal—
C38: Age group | D38: Eligiblea | E38: Registeredb | F38: Proportion eligible registered | G38: Proportion registered by age group
C39: 18-19 | D39: 429906 | E39: 111413 | F39: =(E39/D39) -> 0.2591566528 | G39: =(E39/E47) -> 0.01948317551
C40: 20-29 | D40: 1880813 | E40: 1070320 | F40: 0.5690730551 | G40: =(E40/E47) -> 0.1871705494
C41: 30-39 | D41: 1971595 | E41: 1537037 | F41: 0.779590636 | G41: =E41/E47 -> 0.2687869606
C42: 40-49 | D42: 1349955 | E42: 1175336 | F42: 0.8706482809 | G42: =E42/E47 -> 0.2055350594
C43: 50-59 | D43: 855858 | E43: 821858 | F43: 0.9602737837 | G43: =E43/E47 -> 0.1437211426
C44: 60-69 | D44: 568592 | E44: 570519 | F44: 1.003389073 | G44: =E44/E47 -> 0.09976862494
C45: 70-79 | D45: 310523 | E45: 295948 | F45: 0.9530630581 | G45: =E45/E47 -> 0.05175344732
C46: 80+ | D46: 90320 | E46: 135990 | F46: 1.50564659 | G46: =E46/E47 -> 0.02378104026
C47: Total | D47: =SUM(D39:D46) -> 7457562 | E47: =SUM(E39:E46) -> 5718421 | F47: 0.766794966 | G47: =SUM(G39:G46) -> 1
C49: —Limpopo—
C50: Age group | D50: Eligiblea | E50: Registeredb | F50: Proportion eligible registered | G50: Proportion registered by age group
C51: 18-19 | D51: 218010 | E51: 75889 | F51: =E51/D51 -> 0.3480987111 | G51: =E51/E59 -> 0.02736172394
C52: 20-29 | D52: 813024 | E52: 467686 | F52: 0.5752425513 | G52: =E52/E59 -> 0.1686238483
C53: 30-39 | D53: 914175 | E53: 667601 | F53: 0.7302770257 | G53: =E53/E59 -> 0.2407030567
C54: 40-49 | D54: 695558 | E54: 564806 | F54: 0.812018552 | G54: =E54/E59 -> 0.2036403939
C55: 50-59 | D55: 458080 | E55: 418648 | F55: 0.9139189661 | G55: =E55/E59 -> 0.150943233
C56: 60-69 | D56: 303584 | E56: 307903 | F56: 1.014226705 | G56: =E56/E59 -> 0.1110142035
C57: 70-79 | D57: 172348 | E57: 167304 | F57: 0.970733632 | G57: =E57/E59 -> 0.06032133594
C58: 80+ | D58: 82859 | E58: 103709 | F58: 1.251632291 | G58: =E58/E59 -> 0.03739220478
C59: Total | D59: =SUM(D51:D58) -> 3657638 | E59: =SUM(E51:E58) -> 2773546 | F59: 0.7582888192 | G59: =SUM(G51:G58) -> 1
C60: —Mpumalanga—
C61: Age group | D61: Eligiblea | E61: Registeredb | F61: Proportion eligible registered | G61: Proportion registered by age group
C62: 18-19 | D62: 166837 | E62: 38507 | F62: =E62/D62 -> 0.2308061161 | G62: =E62/E70 -> 0.01906636364
C63: 20-29 | D63: 765328 | E63: 327416 | F63: 0.4278113436 | G63: =E63/E70 -> 0.1621168234
C64: 30-39 | D64: 873099 | E64: 545328 | F64: 0.6245889641 | G64: =E64/E70 -> 0.2700138144
C65: 40-49 | D65: 628627 | E65: 443726 | F65: 0.7058653224 | G65: =E65/E70 -> 0.2197065799
C66: 50-59 | D66: 392766 | E66: 315932 | F66: 0.804377161 | G66: =E66/E70 -> 0.1564306333
C67: 60-69 | D67: 241255 | E67: 209057 | F67: 0.8665395536 | G67: =E67/E70 -> 0.1035125246
C68: 70-79 | D68: 122080 | E68: 94947 | F68: 0.7777441022 | G68: =E68/E70 -> 0.04701207647
C69: 80+ | D69: 51022 | E69: 44717 | F69: 0.8764258555 | G69: =E69/E70 -> 0.02214118428
C70: Total | D70: =SUM(D62:D69) -> 3241014 | E70: =SUM(E62:E69) -> 2019630 | F70: 0.6231475705 | G70: 1
C71: —North West—
C72: Age group | D72: Eligiblea | E72: Registeredb | F72: Proportion eligible registered | G72: Proportion registered by age group
C73: 18-19 | D73: 145903 | E73: 37123 | F73: =E73/D73 -> 0.2544361665 | G73: =E73/E81 -> 0.02106287429
C74: 20-29 | D74: 636084 | E74: 258299 | F74: 0.4060768704 | G74: =E74/E81 -> 0.1465538714
C75: 30-39 | D75: 745185 | E75: 416162 | F75: 0.5584680314 | G75: =E75/E81 -> 0.2361222932
C76: 40-49 | D76: 564198 | E76: 393535 | F76: 0.6975122209 | G76: =E76/E81 -> 0.2232841698
C77: 50-59 | D77: 374068 | E77: 299616 | F77: 0.8009666692 | G77: =E77/E81 -> 0.1699963404
C78: 60-69 | D78: 241045 | E78: 213488 | F78: 0.8856769483 | G78: =E78/E81 -> 0.1211289741
C79: 70-79 | D79: 116419 | E79: 101265 | F79: 0.8698322439 | G79: =E79/E81 -> 0.05745580813
C80: 80+ | D80: 44069 | E80: 42997 | F80: 0.9756745104 | G80: =E80/E81 -> 0.02439566862
C81: Total | D81: =SUM(D73:D80) -> 2866971 | E81: =SUM(E73:E80) -> 1762485 | F81: 0.6147550847 | G81: =SUM(G73:G80) -> 1
C82: —Northern Cape—
C83: Age group | D83: Eligiblea | E83: Registeredb | F83: Proportion eligible registered | G83: Proportion registered by age group
C84: 18-19 | D84: 44503 | E84: 12303 | F84: =E84/D84 -> 0.2764532728 | G84: =E84/E92 -> 0.01881724953
C85: 20-29 | D85: 196707 | E85: 108624 | F85: 0.5522121734 | G85: =E85/E92 -> 0.1661387396
C86: 30-39 | D86: 224594 | E86: 158520 | F86: 0.7058069227 | G86: =E86/E92 -> 0.2424539052
C87: 40-49 | D87: 167651 | E87: 143322 | F87: 0.8548830606 | G87: =E87/E92 -> 0.2192087976
C88: 50-59 | D88: 113093 | E88: 111360 | F88: 0.9846763283 | G88: =E88/E92 -> 0.1703234095
C89: 60-69 | D89: 75111 | E89: 73692 | F89: 0.9811079602 | G89: =E89/E92 -> 0.1127107821
C90: 70-79 | D90: 43221 | E90: 33176 | F90: 0.767589829 | G90: =E90/E92 -> 0.05074218242
C91: 80+ | D91: 18229 | E91: 12818 | F91: 0.7031652861 | G91: =E91/E92 -> 0.01960493412
C92: Total | D92: =SUM(D84:D91) -> 883109 | E92: =SUM(E84:E91) -> 653815 | F92: 0.740355947 | G92: 1
C93: —Western Cape—
C94: Age group | D94: Eligiblea | E94: Registeredb | F94: Proportion eligible registered | G94: Proportion registered by age group
C95: 18-19 | D95: 231933 | E95: 53562 | F95: =E95/D95 -> 0.2309373828 | G95: =E95/E103 -> 0.01620128039
C96: 20-29 | D96: 1154009 | E96: 448974 | F96: 0.3890558912 | G96: =E96/E103 -> 0.1358043699
C97: 30-39 | D97: 1336628 | E97: 723437 | F97: 0.5412403451 | G97: =E97/E103 -> 0.2188231522
C98: 40-49 | D98: 1032601 | E98: 738185 | F98: 0.7148792225 | G98: =E98/E103 -> 0.223284085
C99: 50-59 | D99: 749690 | E99: 626759 | F99: 0.8360242233 | G99: =E99/E103 -> 0.1895802676
C100: 60-69 | D100: 495304 | E100: 419236 | F100: 0.8464215916 | G100: =E100/E103 -> 0.1268093048
C101: 70-79 | D101: 256881 | E101: 209423 | F101: 0.8152529771 | G101: =E101/E103 -> 0.06334566936
C102: 80+ | D102: 84334 | E102: 86459 | F102: 1.025197429 | G102: =E102/E103 -> 0.02615187075
C103: Total | D103: =SUM(D95:D102) -> 5341380 | E103: =SUM(E95:E102) -> 3306035 | F103: 0.6189477251 | G103: =SUM(G95:G102) -> 1
B105: Source: Stats SA, Mid-year population estimates 2022, Provincial projection by sex and age (2023-2027), accessed 23 July 2024; IEC, www.elections.org.za, accessed 23 July 2024
B106: a As at 11 October 2022.
B107: b As at 23 July 2024.

Sheet Voter turnout.94-24
A2: Voter turnout
A4: Voter turnout in national, provincial, and local government elections, 1994-2024
A6: —National and provincial elections—
A7: Year | B7: Eligible voters | C7: Total registered voters | D7: Total votes cast | E7: Votes as a proportion of total eligible voters | F7: Proportion of eligible voters who did not vote | G7: Proportion of registered voters who voted
A8: 1994a | B8: 22709152 | C8: 22709152 | D8: 19533498 | E8: =D8/B8 -> 0.8601597277 | F8: =(B8-D8)/B8 -> 0.1398402723 | G8: =D8/C8 -> 0.8601597277
A9: 1999 | B9: 22798845 | C9: 18177751 | D9: 16228462 | E9: =D9/B9 -> 0.711810708 | F9: =(B9-D9)/B9 -> 0.288189292 | G9: =D9/C9 -> 0.8927651171
A10: 2004 | B10: 27436898 | C10: 20674926 | D10: 15868558 | E10: =D10/B10 -> 0.578365601 | F10: =(B10-D10)/B10 -> 0.421634399 | G10: =D10/C10 -> 0.7675267133
A11: 2009 | B11: 27574414 | C11: 23181997 | D11: 17919966 | E11: =D11/B11 -> 0.6498765849 | F11: =(B11-D11)/B11 -> 0.3501234151 | G11: =D11/C11 -> 0.7730121784
A12: 2014 | B12: 31434035 | C12: 25 318 713b | D12: 18 654 771c | E12: 0.593 | F12: 0.407 | G12: =18654771/25318713 -> 0.736797759 | I12: .
A13: 2019 | B13: 39050686 | C13: 26756649 | D13: 17671615 | E13: 0.4525 | F13: 0.3395 | G13: 0.6605
A14: 2024 | B14: 41631020 | C14: 27672264 | D14: 16291516 | E14: 0.3913 | F14: 0.6086 | G14: 0.5887
A15: —Local elections—
A16: 1995 | B16: 16 590 000d | C16: 12720000 | D16: 6200000 | E16: =6200000/16590000 -> 0.3737191079 | F16: =(16590000-6200000)/16590000 -> 0.6262808921 | G16: =D16/C16 -> 0.4874213836
A17: 2000 | B17: 23532308 | C17: 18476516 | D17: 8882734 | E17: =D17/B17 -> 0.3774697323 | F17: =(B17-D17)/B17 -> 0.6225302677 | G17: =D17/C17 -> 0.4807580607
A18: 2006 | B18: 25364801 | C18: 21054957 | D18: 10186795 | E18: =D18/B18 -> 0.4016114694 | F18: =(B18-D18)/B18 -> 0.5983885306 | G18: =D18/C18 -> 0.483819321
A19: 2011 | B19: 33702589 | C19: 23655046 | D19: 13664914 | E19: =D19/B19 -> 0.4054559132 | F19: =(B19-D19)/B19 -> 0.5945440868 | G19: 0.576
A20: 2016 | B20: 36198776 | C20: 26 333 353e | D20: 15296711 | E20: =(D20/B20) -> 0.4225753655 | F20: =(B20-D20)/B20 -> 0.5774246345 | G20: 0.579
A21: 2021 | B21: 40086947 | C21: 26204579 | D21: 12063709 | E21: =D21/B21 -> 0.3009385823 | F21: =(B21-D21)/B21 -> 0.6990614177 | G21: =D21/C21 -> 0.4603664497
A22: Source: The Presidency, Development Indicators 2012, 20 August 2013, IEC, www.elections.org.za, accessed 11 June 2024; Stats SA, Interactive data, www.interactive.statssa.gov.za, accessed 25 August 2016, p63; IEC, www.elections.org.za, accessed 11 June 2024
A23: a In 1994 there was no voter registration, and permanent residents without South African citizenship were allowed to vote. This was not the case in subsequent elections.
A24: b As at 2 July 2014.
A25: c Total votes cast in 2014 includes spoilt votes.
A26: d Excludes voters in KwaZulu-Natal and parts of the Western Cape.
A27: e As at 1 June 2016
A28: f Total votes cast 2021 include spoilt votes.

Sheet GOVERNANCE

Sheet Human resources

Sheet Councillors by province, 21-22
B2: GOVERNANCE
B4: Number of councillors by province, 2021 and 2022
C6: —Full-time— | G6: —Part-time— | K6: —Vacant posts— | M6: —Total—
C7: —Male— | E7: —Female— | G7: —Male— | I7: —Female—
B8: Province | C8: 2021 | D8: 2022 | E8: 2021 | F8: 2022 | G8: 2021 | H8: 2022 | I8: 2021 | J8: 2022 | K8: 2021 | L8: 2022 | M8: 2021 | N8: 2022
B9: Eastern Cape | C9: 129 | D9: 147 | E9: 113 | F9: 130 | G9: 757 | H9: 771 | I9: 572 | J9: 541 | K9: 6 | L9: 3 | M9: 1577 | N9: 1592
B10: Free State | C10: 69 | D10: 112 | E10: 52 | F10: 67 | G10: 382 | H10: 375 | I10: 203 | J10: 172 | K10: 2 | L10: 0 | M10: 708 | N10: 726
B11: Gauteng | C11: 71 | D11: 96 | E11: 57 | F11: 69 | G11: 620 | H11: 729 | I11: 383 | J11: 395 | K11: 5 | L11: 1 | M11: 1136 | N11: 1290
B12: KwaZulu-Natal | C12: 141 | D12: 278 | E12: 104 | F12: 155 | G12: 1120 | H12: 1075 | I12: 609 | J12: 515 | K12: 0 | L12: 5 | M12: 1974 | N12: 2028
B13: Limpopo | C13: 198 | D13: 244 | E13: 155 | F13: 183 | G13: 518 | H13: 459 | I13: 415 | J13: 289 | K13: 1 | L13: 0 | M13: 1287 | N13: 1175
B14: Mpumalanga | C14: 106 | D14: 123 | E14: 101 | F14: 119 | G14: 462 | H14: 465 | I14: 307 | J14: 253 | K14: 6 | L14: 4 | M14: 982 | N14: 964
B15: North West | C15: 103 | D15: 121 | E15: 74 | F15: 109 | G15: 473 | H15: 447 | I15: 305 | J15: 232 | K15: 1 | L15: 40 | M15: 956 | N15: 949
B16: Northern Cape | C16: 29 | D16: 50 | E16: 36 | F16: 42 | G16: 211 | H16: 239 | I16: 165 | J16: 166 | K16: 4 | L16: 2 | M16: 445 | N16: 499
B17: Western Cape | C17: 163 | D17: 172 | E17: 94 | F17: 102 | G17: 365 | H17: 368 | I17: 258 | J17: 253 | K17: 2 | L17: 0 | M17: 882 | N17: 895
B18: South Africa | C18: =SUM(C9:C17) -> 1009 | D18: =SUM(D9:D17) -> 1343 | E18: 786 | F18: 976 | G18: 4908 | H18: 4928 | I18: 3217 | J18: 2816 | K18: 27 | L18: 55 | M18: 9947 | N18: 10118
B19: Source: Stats SA, Non-financial census of municipalities for the year ended 30 June 2022, Statistical release P9115, 31 May 2024, Table 1.3, p10

Sheet Mayors by province, 2021-2022
C2: Executive mayor and mayor positions by province, 2021 and 2022
D4: —Full-time— | H4: —Part-time— | L4: —Vacant posts— | N4: —Total—
D5: —Male— | F5: —Female— | H5: —Male— | J5: —Female—
C6: Province | D6: 2021 | E6: 2022 | F6: 2021 | G6: 2022 | H6: 2021 | I6: 2022 | J6: 2021 | K6: 2022 | L6: 2021 | M6: 2022 | N6: 2021 | O6: 2022
C7: Eastern Cape | D7: 20 | E7: 18 | F7: 18 | G7: 21 | H7: 0 | I7: 0 | J7: 0 | K7: 0 | L7: 1 | M7: 0 | N7: 39 | O7: 39
C8: Free State | D8: 15 | E8: 12 | F8: 8 | G8: 11 | H8: 0 | I8: 0 | J8: 0 | K8: 0 | L8: 0 | M8: 0 | N8: 23 | O8: 23
C9: Gauteng | D9: 8 | E9: 6 | F9: 3 | G9: 5 | H9: 0 | I9: 0 | J9: 0 | K9: 0 | L9: 0 | M9: 0 | N9: 11 | O9: 11
C10: KwaZulu-Natal | D10: 43 | E10: 47 | F10: 11 | G10: 7 | H10: 0 | I10: 0 | J10: 0 | K10: 0 | L10: 0 | M10: 0 | N10: 54 | O10: 54
C11: Limpopo | D11: 20 | E11: 20 | F11: 6 | G11: 7 | H11: 0 | I11: 0 | J11: 0 | K11: 0 | L11: 1 | M11: 0 | N11: 27 | O11: 27
C12: Mpumalanga | D12: 12 | E12: 14 | F12: 8 | G12: 6 | H12: 0 | I12: 0 | J12: 0 | K12: 0 | L12: 0 | M12: 0 | N12: 20 | O12: 20
C13: North West | D13: 12 | E13: 11 | F13: 10 | G13: 11 | H13: 0 | I13: 0 | J13: 0 | K13: 0 | L13: 0 | M13: 0 | N13: 22 | O13: 22
C14: Northern Cape | D14: 20 | E14: 23 | F14: 11 | G14: 8 | H14: 0 | I14: 0 | J14: 0 | K14: 0 | L14: 0 | M14: 0 | N14: 31 | O14: 31
C15: Western Cape | D15: 24 | E15: 24 | F15: 6 | G15: 6 | H15: 0 | I15: 0 | J15: 0 | K15: 0 | L15: 0 | M15: 0 | N15: 30 | O15: 30
C16: South Africa | D16: =SUM(D7:D15) -> 174 | E16: =SUM(E7:E15) -> 175 | F16: =SUM(F7:F15) -> 81 | G16: =SUM(G7:G15) -> 82 | H16: 0 | I16: 0 | J16: 0 | K16: 0 | L16: 2 | M16: 0 | N16: 257 | O16: 257
C17: Source: Stats SA, Non-financial census of municipalities for the year ended 30 June 2022, Statistical release P9115, 31 May 2024, Table 1.4, p11

Sheet Provincial managers, 2021-2022
C2: Municipal employmenta by province, 2021 and 2022
D4: —Full-time— | F4: —Part-time— | H4: —Vacant posts— | J4: —Total—
C5: Province | D5: 2021 | E5: 2022 | F5: 2021 | G5: 2022 | H5: 2021 | I5: 2022 | J5: 2021 | K5: 2022
C6: Eastern Cape | D6: 28621 | E6: 28087 | F6: 4264 | G6: 2793 | H6: 1024 | I6: 2737 | J6: 33909 | K6: 33617
C7: Free State | D7: 15974 | E7: 15972 | F7: 91 | G7: 68 | H7: 189 | I7: 1557 | J7: 16254 | K7: 17597
C8: Gauteng | D8: 82138 | E8: 94131 | F8: 1550 | G8: 812 | H8: 10773 | I8: 11386 | J8: 94461 | K8: 106329
C9: KwaZulu-Natal | D9: 49437 | E9: 49145 | F9: 1909 | G9: 1718 | H9: 547 | I9: 7845 | J9: 51893 | K9: 58708
C10: Limpopo | D10: 13772 | E10: 13875 | F10: 22 | G10: 80 | H10: 189 | I10: 2419 | J10: 13983 | K10: 16374
C11: Mpumalanga | D11: 14345 | E11: 14414 | F11: 142 | G11: 67 | H11: 163 | I11: 4019 | J11: 14650 | K11: 18500
C12: North West | D12: 12388 | E12: 13179 | F12: 676 | G12: 383 | H12: 63 | I12: 1909 | J12: 13127 | K12: 15471
C13: Northern Cape | D13: 8471 | E13: 8475 | F13: 664 | G13: 628 | H13: 174 | I13: 975 | J13: 9309 | K13: 10078
C14: Western Cape | D14: 45257 | E14: 45317 | F14: 2773 | G14: 2656 | H14: 3322 | I14: 5516 | J14: 51352 | K14: 53489
C15: South Africa | D15: =SUM(D6:D14) -> 270403 | E15: 282595 | F15: 12091 | G15: 9205 | H15: 16444 | I15: 38363 | J15: 298938 | K15: 330163
C16: Source: Stats SA, Non-financial census of municipalities for the year ended 30 June 2022, Statistical release P9115, 31 May 2023, Table 1.5, p12
C17: a Including managerial positions.

Sheet Consultants in province, 20-22
B2: The use of and spending on consultants in municipalities, 2020-21 and 2021-22
C4: —2020-21— | E4: —2021-22—
B5: Province | C5: Rm | D5: Number of municipalitiesa | E5: Rm | F5: Number of municipalitiesa
B6: Eastern Cape | C6: 137.27 | D6: 31 | E6: 154.88 | F6: 33
B7: Free State | C7: 35.03 | D7: 13 | E7: 32.29 | F7: 13
B8: Gauteng | C8: 148.67 | D8: 5 | E8: 150.19 | F8: 7
B9: KwaZulu-Natal | C9: 205.6 | D9: 46 | E9: 309.26 | F9: 48
B10: Limpopo | C10: 279.68 | D10: 26 | E10: 263.18 | F10: 26
B11: Mpumalanga | C11: 156.63 | D11: 17 | E11: 245.37 | F11: 20
B12: Northern Cape | C12: 110.05 | D12: 24 | E12: 126.95 | F12: 26
B13: North West | C13: 249.08 | D13: 20 | E13: 282.33 | F13: 20
B14: Western Cape | C14: 42.67 | D14: 27 | E14: 45.25 | F14: 27
B15: South Africa | C15: =SUM(C6:C14) -> 1364.68 | D15: =SUM(D6:D14) -> 209 | E15: =SUM(E6:E14) -> 1609.7 | F15: =SUM(F6:F14) -> 220
B16: Source: Auditor-General of South Africa (AGSA), Consolidated General Report on Local Government Audit Outcomes MFMA 2021-22, p32
B18: a South Africa has a total of 257 municipalities. These include 8 metropolitan municipalities, 44 district municipalities and 205 local municipalities.

Sheet Remuneration of public official
B2: Public officials
B4: Remuneration of public officials, 2018-24
B6: — Annual remuneration R —
B7: Position | C7: 1 Apr 2018 | D7: 21 Feb 2020 | E7: 14 Jun 2022 | F7: 21 April 2023a | G7: 1 April 2024
B8: President | C8: 2989845 | D8: 3079540 | E8: 3079540 | F8: 3196563 | G8: 3348761
B9: Deputy President | C9: 2825470 | D9: 2825470 | E9: 2910234 | F9: 3020823 | G9: 3164654
B10: Ministers | C10: 2401633 | D10: 2401633 | E10: 2473682 | F10: 2567682 | G10: 2689937
B11: Deputy Ministers | C11: 1977795 | D11: 1977795 | E11: 2037129 | F11: 2114540 | G11: 2215220
B12: Speaker of the National Assembly | C12: 2825470 | D12: 2825470 | E12: 2910234 | F12: 3020823 | G12: 3164654
B13: Chairperson of the NCOP | C13: 2825470 | D13: 2825470 | E13: 2910234 | F13: 3020823 | G13: 3164654
B14: Deputy Speaker of the National Assembly | C14: 1977795 | D14: 1977795 | E14: 2037129 | F14: 2114540 | G14: 2215220
B15: Deputy Chairperson of the NCOP | C15: 1977795 | D15: 1977795 | E15: 2037129 | F15: 2114540 | G15: 2215220
B16: House Chairperson | C16: 1882488 | D16: 1882488 | E16: 1938963 | F16: 2012643 | G16: 2108472
B17: Chief Whip of the Majority Party | C17: 1600467 | D17: 1600467 | E17: 1648481 | F17: 1711123 | G17: 1792595
B18: Chief Whip of the NCOP | C18: 1600467 | D18: 1600467 | E18: 1648481 | F18: 1711123 | G18: 1792595
B19: Parliamentary Council President | C19: 1600467 | D19: 1600467 | E19: 1648481 | F19: 1711123 | G19: 1792595
B20: Parliamentary Council Deputy President | C20: 1600467 | D20: 1600467 | E20: 1648481 | F20: 1711123 | G20: 1792595
B21: Leader of the Opposition | C21: 1600467 | D21: 1600467 | E21: 1648481 | F21: 1711123 | G21: 1792595
B22: Chairperson of a Committee | C22: 1455015 | D22: 1495755 | E22: 1540628 | F22: 1599172 | G22: 1675314
B23: Deputy Chief Whip of the Majority Party | C23: 1309563 | D23: 1346232 | E23: 1386619 | F23: 1439310 | G23: 1507841
B24: Chief Whip of the largest Minority Party | C24: 1309563 | D24: 1346232 | E24: 1386619 | F24: 1439310 | G24: 1507841
B25: Leader of a Minority Party | C25: 1309563 | D25: 1346232 | E25: 1386619 | F25: 1439310 | G25: 1507841
B26: Whip | C26: 1215210 | D26: 1249236 | E26: 1286713 | F26: 1335608 | G26: 1399201
B27: Member of the National Assembly | C27: 1106940 | D27: 1137933 | E27: 1172071 | F27: 1216610 | G27: 1274536
B28: Permanent Delegate of the NCOP | C28: 1106940 | D28: 1137933 | E28: 1172071 | F28: 1216610 | G28: 1274536
B29: Premier | C29: 2260409 | D29: 2260409 | E29: 2328221 | F29: 2416693 | G29: 2531760
B30: Member of the Executive Council | C30: 1977795 | D30: 1977795 | E30: 2037129 | F30: 2114540 | G30: 2215220
B31: Speaker | C31: 1977795 | D31: 1977795 | E31: 2037129 | F31: 2114540 | G31: 2215220
B32: Deputy Speaker | C32: 1600467 | D32: 1600467 | E32: 1648481 | F32: 1711123 | G32: 1792595
B33: Chief Whip of the Majority Party | C33: 1455015 | D33: 1495755 | E33: 1540628 | F33: 1599172 | G33: 1675314
B34: Chairperson of Committees | C34: 1309566 | D34: 1346235 | E34: 1386622 | F34: 1439314 | G34: 1507844
B35: Leader of the Opposition | C35: 1309566 | D35: 1346235 | E35: 1386622 | F35: 1439314 | G35: 1507844
B36: Deputy Chairperson of Committee | C36: 1232070 | D36: 1266567 | E36: 1386622 | F36: 1354137 | G36: 1418612
B37: Deputy Chief Whip of the Majority Party | C37: 1232070 | D37: 1266567 | E37: 1304564 | F37: 1354137 | G37: 1418612
B38: Chief Whip of the largest Minority Party | C38: 1232070 | D38: 1266567 | E38: 1304564 | F38: 1354137 | G38: 1418612
B39: Leader of a Minority Party | C39: 1232070 | D39: 1266567 | E39: 1304564 | F39: 1354137 | G39: 1418612
B40: Parliamentary Councillor to a King/Queen | C40: 1106940 | D40: 1137933 | E40: 1172071 | F40: 1216610 | G40: 1274536
B41: Whip | C41: 1106940 | D41: 1137933 | E41: 1172071 | F41: 1216610 | G41: 1274536
B42: Member of Provincial Legislature | C42: 1071351 | D42: 1101348 | E42: 1134388 | F42: 1177495 | G42: 1233560
B43: Chief Justice | C43: 2896107 | D43: 2896107 | E43: 2982990 | F43: 3096344 | G43: 3243771
B44: Deputy Chief Justice | C44: 2606428 | D44: 2606428 | E44: 2684621 | F44: 2786636 | G44: 2919317
B45: President: Supreme Court of Appeal | C45: 2606428 | D45: 2606428 | E45: 2684621 | F45: 2786636 | G45: 2919317
B46: Deputy President: Supreme Court of Appeal | C46: 2461674 | D46: 2461674 | E46: 2535524 | F46: 2631874 | G46: 2757186
B47: Judge: Constitutional Court | C47: 2316919 | D47: 2316919 | E47: 2386427 | F47: 2477111 | G47: 2595054
B48: Judge: Supreme Court of Appeal | C48: 2316919 | D48: 2316919 | E48: 2386427 | F48: 2477111 | G48: 2595054
B49: Judge President: High/Labour Court | C49: 2172165 | D49: 2172165 | E49: 2237330 | F49: 2322348 | G49: 2432922
B50: Deputy Judge President: High/Labour Court | C50: 2027241 | D50: 2027241 | E50: 2088058 | F50: 2167404 | G50: 2270601
B51: Judge: High/Labour Court | C51: 1882486 | D51: 1882486 | E51: 1938961 | F51: 2012641 | G51: 2108470
B52: Source: Government Gazette No.43019, 13 February 2020; Government Gazette No.42107, 21 February 2020; Government Gazette No.43043, 21 February 2020; Government Gazette No. 46120, 30 March 2022; Government Gazette No.46545, 14 June 2022; Government Gazette No.46620, 28 June 2022; Government Gazette No.48458, 21 April 2023; 1 April 2024, Government Gazette No. 50661
B53: a The President signed a 3% increase that applies retrospectively as of 1 April 2022.

Sheet Audit outcomes

Sheet Overall audit outcomes, 20-22
B2: Overall audit outcomes, 2020-21 and 2021-22
B4: Audit outcome | C4: 2020-21 | D4: 2021-22
B5: Unqualified with no findings (clean)a | C5: 41 | D5: 38
B6: Unqualified with findingsb | C6: 100 | D6: 104
B7: Qualified with findingsc | C7: 78 | D7: 78
B8: Adverse with findingsd | C8: 4 | D8: 6
B9: Disclaimed with findingse | C9: 25 | D9: 15
B10: Outstanding audits | C10: 9 | D10: 16
B11: Source: AGSA, Consolidated General Report on Local Government Audit Outcomes MFMA 2021-22, p14
B12: a Audit outcomes with no material mistakes found in the performance objectives or non-compliance with the relevant laws.
B13: b Audit outcomes that may have been reported based on predetermined objectives, non-compliance with legislation, or both of these items.
B14: c Findings denoting that the misstatements contained are material, or that there is insufficient evidence to corroborate the material misstatements.
B15: d There were material misstatements not limited to specific amounts or the misstatements contained are of a substantial amount.
B16: e Includes auditees who provided insufficient documentation for the auditor to grant their opinion. Such a lack of evidence represents material information contained in the financial statements.

Sheet Audit outcomes by auditee, 22
B2: Audit outcomes by type of auditee, 2021-22
B4: Audit outcome | C4: Metropolitan municipalities | D4: Intermediate citiesf | E4: District municipalities | F4: Local municipalities
B5: Unqualified with no findings (clean)a | C5: 2 | D5: 5 | E5: 13 | F5: 18
B6: Unqualified with findingsb | C6: 3 | D6: 16 | E6: 16 | F6: 69
B7: Qualified with findingsc | C7: 2 | D7: 15 | E7: 10 | F7: 51
B8: Adverse with findingsd | C8: 1 | D8: 0 | E8: 2 | F8: 3
B9: Disclaimed with findingse | C9: 0 | D9: 2 | E9: 1 | F9: 12
B10: Outstanding audits | C10: 0 | D10: 1 | E10: 2 | F10: 13
B11: Source: AGSA, Consolidated General Report on Local Government Audit Outcomes MFMA 2021-22, p56
B12: a Audit outcomes with no material mistakes found in the performance objectives or non-compliance with the relevant laws.
B13: b Audit outcomes that may have been reported based on predetermined objectives, non-compliance with legislation, or both of these items.
B14: c Findings denoting that the misstatements contained are material, or that there is insufficient evidence to corroborate the material misstatements.
B15: d There were material misstatements not limited to specific amounts or the misstatements contained are of a substantial amount.
B16: e Includes auditees who provided insufficient documentation for the auditor to grant their opinion. Such a lack of evidence represents material information contained in the financial statements.
B17: f Intermediate cities are municipalities that carry service delivery-related municipal functions not assigned to district municipalities. They are allocated large budgets to serve the large number of households under them.

Sheet Provincial audit outcomes,21-22
B2: Provincial audit outcomes, 2021-22
B4: Audit outcome | C4: Eastern Cape | D4: Free State | E4: Gauteng | F4: KwaZulu-Natal | G4: Limpopo | H4: Mpumalanga | I4: North West | J4: Northern Cape | K4: Western Cape
B5: Unqualified with no findings (clean)a | C5: 3 | D5: — | E5: 2 | F5: 4 | G5: 2 | H5: 2 | I5: 0 | J5: 4 | K5: 21
B6: Unqualified with findingsb | C6: 18 | D6: 7 | E6: 5 | F6: 37 | G6: 13 | H6: 9 | I6: 3 | J6: 6 | K6: 6
B7: Qualified with findingsc | C7: 13 | D7: 8 | E7: 2 | F7: 11 | G7: 11 | H7: 7 | I7: 10 | J7: 15 | K7: 1
B8: Adverse with findingsd | C8: 1 | D8: — | E8: 1 | F8: 1 | G8: — | H8: 1 | I8: 1 | J8: — | K8: 1
B9: Disclaimed with findingse | C9: 1 | D9: — | E9: 1 | F9: — | G9: 1 | H9: 1 | I9: 6 | J9: 4 | K9: 1
B10: Outstanding audits | C10: 3 | D10: 8 | E10: — | F10: 1 | G10: — | H10: — | I10: 2 | J10: 2 | K10: —
B11: Source: AGSA, Consolidated General Report on Local Government Audit Outcomes MFMA 2021-22, p99
B12: a Audit outcomes with no material mistakes found in the performance objectives or non-compliance with the relevant laws.
B13: b Audit outcomes that may have been reported based on predetermined objectives, non-compliance with legislation, or both of these items.
B14: c Findings denoting that the misstatements contained are material, or that there is insufficient evidence to corroborate the material misstatements.
B15: d There were material misstatements not limited to specific amounts or the misstatements contained are of a substantial amount.
B16: e Includes auditees who provided insufficient documentation for the auditor to grant their opinion. Such a lack of evidence represents material information contained in the financial statements.

Sheet Governance indicators
B2: International comparisons
B4: Governance indicators
B6: This section contains international comparisons of governance indicators, which are defined below:
B7: Voice and accountability: Measures the extent to which a country’s citizens are able to participate in selecting their government, as well as freedom of expression, freedom of association, and a free media.
B8: Political stability: Measures the perceptions of the likelihood that a government will be destabilised or overthrown by violent or non-constitutional means, including domestic violence and terrorism.
B9: Government effectiveness: Measures the quality of public services, the quality of the civil service, and the degree of its independence from political pressures, the quality of policy formulation and implementation, and the credibility of a government’s commitment to such policies.
B10: Regulatory quality: Measures the ability of a government to formulate and implement sound policies and regulations that permit and protect private sector development.
B11: Rule of law: Measures the extent to which agents have confidence and abide by the rules of society, in particular the quality of contract enforcement, the police, and the courts, as well as the likelihood of crime and violence.
B12: Control of corruption: Reflects perceptions of the extent to which public power is exercised for private gain, including both petty and grand forms of corruption, as well as 'capture' of the state by elites and private interests.

Sheet RDGovernance indicators.22.SC
C2: Governance indicators, selected countries, 2022
C4: Country | D4: Voice and accountability | E4: Political stability | F4: Government effectiveness | G4: Regulatory quality | H4: Rule of law | I4: Control of corruption
D5: —0-100a—
C6: Australia | D6: 93.23671722 | E6: 81.60377502 | F6: 92.92453003 | G6: 99.52830505 | H6: 91.03773499 | I6: 95.28302002
C7: Botswana | D7: 60.86956406 | E7: 87.26415253 | F7: 67.92453003 | G7: 72.16981506 | H7: 66.03773499 | I7: 74.05660248
C8: Brazil | D8: 55.55555725 | E8: 33.96226501 | F8: 30.6603775 | G8: 43.86792374 | H8: 43.39622498 | I8: 32.07546997
C9: Chile | D9: 78.26087189 | E9: 51.41509247 | F9: 69.3396225 | G9: 81.13207245 | H9: 72.64151001 | I9: 80.6603775
C10: China | D10: 6.280193329 | E10: 28.30188751 | F10: 68.39622498 | G10: 36.79245377 | H10: 52.83018875 | I10: 55.18867874
C11: Denmark | D11: 98.06763458 | E11: 77.35848999 | F11: 98.58490753 | G11: 98.58490753 | H11: 99.52830505 | I11: 100
C12: Egypt | D12: 9.178744316 | E12: 14.15094376 | F12: 33.96226501 | G12: 24.52830124 | H12: 42.45283127 | I12: 26.41509438
C13: France | D13: 85.99034119 | E13: 56.13207626 | F13: 83.01886749 | G13: 85.37735748 | H13: 85.37735748 | I13: 85.37735748
C14: Germany | D14: 94.68598938 | E14: 67.45282745 | F14: 88.20755005 | G14: 92.45282745 | H14: 91.98113251 | I14: 95.75471497
C15: Ghana | D15: 59.42028809 | E15: 43.86792374 | F15: 50.47169876 | G15: 44.81132126 | H15: 51.41509247 | I15: 52.83018875
C16: Greece | D16: 76.8115921 | E16: 49.05660248 | F16: 66.50943756 | G16: 67.45282745 | H16: 59.90565872 | I16: 56.60377502
C17: Hong Kong | D17: 35.26570129 | E17: 66.50943756 | F17: 95.75471497 | G17: 93.86792755 | H17: 87.73584747 | I17: 92.45282745
C18: India | D18: 49.27536392 | E18: 24.52830124 | F18: 63.20754623 | G18: 50.94339752 | H18: 55.18867874 | I18: 44.3396225
C19: Indonesia | D19: 52.65700531 | E19: 29.24528313 | F19: 66.03773499 | G19: 59.43396378 | H19: 45.28302002 | I19: 37.73584747
C20: Ireland | D20: 96.13526917 | E20: 78.77358246 | F20: 93.39622498 | G20: 95.28302002 | H20: 91.50943756 | I20: 93.86792755
C21: Israel | D21: 67.63285065 | E21: 11.79245281 | F21: 85.37735748 | G21: 86.320755 | H21: 81.13207245 | I21: 78.77358246
C22: Italy | D22: 82.60869598 | E22: 58.49056625 | F22: 66.98113251 | G22: 68.86792755 | H22: 58.49056625 | I22: 68.86792755
C23: Japan | D23: 80.1932373 | E23: 86.79244995 | F23: 96.22641754 | G23: 91.50943756 | H23: 92.45282745 | I23: 90.56604004
C24: Kazakhstan | D24: 19.8067627 | E24: 32.54716873 | F24: 58.49056625 | G24: 52.83018875 | H24: 35.84905624 | I24: 48.58490753
C25: Lithuania | D25: 81.15942383 | E25: 69.3396225 | F25: 79.71697998 | G25: 87.73584747 | H25: 83.01886749 | I25: 76.41509247
C26: Mexico | D26: 42.02898407 | E26: 21.69811249 | F26: 42.45283127 | G26: 46.69811249 | H26: 20.75471687 | I26: 17.45282936
C27: Mozambique | D27: 31.884058 | E27: 11.320755 | F27: 25 | G27: 22.64151001 | H27: 16.50943375 | I27: 21.69811249
C28: Nigeria | D28: 32.36714935 | E28: 7.547169685 | F28: 14.15094376 | G28: 12.26415062 | H28: 19.81132126 | I28: 14.62264156
C29: Pakistan | D29: 25.12077332 | E29: 6.603773594 | F29: 29.24528313 | G29: 20.28301811 | H29: 25 | I29: 22.64151001
C30: Philippines | D30: 43.9613533 | E30: 20.28301811 | F30: 56.13207626 | G30: 53.77358627 | H30: 33.49056625 | I30: 33.49056625
C31: Poland | D31: 65.21739197 | E31: 61.79245377 | F31: 61.79245377 | G31: 74.52830505 | H31: 64.15093994 | I31: 68.39622498
C32: Russia | D32: 14.49275398 | E32: 16.03773499 | F32: 25.94339561 | G32: 13.20754719 | H32: 12.26415062 | I32: 19.3396225
C33: Saudi Arabia | D33: 7.729468822 | E33: 32.07546997 | F33: 70.75471497 | G33: 65.09433746 | H33: 58.01886749 | I33: 63.679245
C34: South Africa | D34: 68.59903717 | E34: 19.81132126 | F34: 48.11320877 | G34: 44.3396225 | H34: 54.24528122 | I34: 44.81132126
C35: Spain | D35: 79.71014404 | E35: 53.30188751 | F35: 77.83018494 | G35: 75.94339752 | H35: 77.35848999 | I35: 75
C36: Switzerland | D36: 99.03381348 | E36: 92.45282745 | F36: 99.52830505 | G36: 94.3396225 | H36: 97.64151001 | I36: 97.16981506
C37: Turkey | D37: 23.18840599 | E37: 13.679245 | F37: 43.86792374 | G37: 43.39622498 | H37: 36.79245377 | I37: 34.90565872
C38: Uganda | D38: 26.08695602 | E38: 17.45282936 | F38: 31.13207626 | G38: 33.01886749 | H38: 39.15094376 | I38: 16.50943375
C39: United Kingdom | D39: 89.37197876 | E39: 62.26415253 | F39: 85.84906006 | G39: 93.39622498 | H39: 89.15093994 | I39: 92.92453003
C40: United States | D40: 72.94686127 | E40: 45.28302002 | F40: 86.79244995 | G40: 91.03773499 | H40: 88.679245 | I40: 82.54717255
C41: Venezuela | D41: 6.76328516 | E41: 12.26415062 | F41: 5.188679218 | G41: 2.358490467 | H41: 0.4716981053 | I41: 1.886792421
C42: Source: World Bank, World Governance Indicators, govindicators.org, accessed 2 October 2023
C43: a The percentile rank indicates the rank of the country among all countries in the world — 0 being the lowest, and 100 the highest. The World Bank calculates the rankings by aggregating the views on the quality of governance provided by a large number of enterprise, citizen, and expert survey respondents. The data is gathered from a number of survey institutes, think tanks, non-governmental organisations, and international organisations.

Sheet RDGovernance indicators.22.EM
B2: Governance indicators, emerging markets, 2022
B4: Country | C4: Voice and accountability | D4: Political stability | E4: Government effectiveness | F4: Regulatory quality | G4: Rule of law | H4: Control of corruption
C5: —0-100a—
B6: Brazil | C6: 55.55555725 | D6: 33.96226501 | E6: 30.6603775 | F6: 43.86792374 | G6: 43.39622498 | H6: 32.07546997
B7: Bulgaria | C7: 57.00482941 | D7: 52.35848999 | E7: 42.92453003 | F7: 61.79245377 | G7: 49.52830124 | H7: 50
B8: Chile | C8: 78.26087189 | D8: 51.41509247 | E8: 69.3396225 | F8: 81.13207245 | G8: 72.64151001 | H8: 80.6603775
B9: China | C9: 6.280193329 | D9: 28.30188751 | E9: 68.39622498 | F9: 36.79245377 | G9: 52.83018875 | H9: 55.18867874
B10: Colombia | C10: 54.58937073 | D10: 23.11320686 | E10: 53.77358627 | F10: 56.60377502 | G10: 38.679245 | H10: 41.03773499
B11: Czech Republic | C11: 80.67633057 | D11: 75 | E11: 81.13207245 | F11: 88.679245 | G11: 83.49056244 | H11: 74.52830505
B12: Egypt | C12: 9.178744316 | D12: 14.15094376 | E12: 33.96226501 | F12: 24.52830124 | G12: 42.45283127 | H12: 26.41509438
B13: Estonia | C13: 87.9227066 | D13: 71.69811249 | E13: 89.62264252 | F13: 92.92453003 | G13: 89.62264252 | H13: 91.03773499
B14: Greece | C14: 76.8115921 | D14: 49.05660248 | E14: 66.50943756 | F14: 67.45282745 | G14: 59.90565872 | H14: 56.60377502
B15: Hungary | C15: 59.90338135 | D15: 67.92453003 | E15: 68.86792755 | F15: 64.62264252 | G15: 63.20754623 | H15: 51.41509247
B16: India | C16: 49.27536392 | D16: 24.52830124 | E16: 63.20754623 | F16: 50.94339752 | G16: 55.18867874 | H16: 44.3396225
B17: Indonesia | C17: 52.65700531 | D17: 29.24528313 | E17: 66.03773499 | F17: 59.43396378 | G17: 45.28302002 | H17: 37.73584747
B18: Jordan | C18: 27.05314064 | D18: 35.37735748 | E18: 59.90565872 | F18: 57.07546997 | G18: 57.07546997 | H18: 58.01886749
B19: Kuwait | C19: 29.46859932 | D19: 54.24528122 | E19: 57.54716873 | F19: 60.37735748 | G19: 57.54716873 | H19: 58.96226501
B20: Latvia | C20: 75.84541321 | D20: 60.37735748 | E20: 75 | F20: 84.90566254 | G20: 79.71697998 | H20: 75.47169495
B21: Lithuania | C21: 81.15942383 | D21: 69.3396225 | E21: 79.71697998 | F21: 87.73584747 | G21: 83.01886749 | H21: 76.41509247
B22: Malaysia | C22: 47.34299469 | D22: 51.88679123 | E22: 79.24528503 | F22: 72.64151001 | G22: 68.39622498 | H22: 62.26415253
B23: Mauritius | C23: 65.70048523 | D23: 75.47169495 | E23: 75.94339752 | F23: 84.43395996 | G23: 77.83018494 | H23: 65.56604004
B24: Mexico | C24: 42.02898407 | D24: 21.69811249 | E24: 42.45283127 | F24: 46.69811249 | G24: 20.75471687 | H24: 17.45282936
B25: Morocco | C25: 32.85024261 | D25: 34.43396378 | E25: 47.16981125 | F25: 49.05660248 | G25: 44.81132126 | H25: 41.50943375
B26: Oman | C26: 17.87439537 | D26: 62.73584747 | E26: 54.24528122 | F26: 65.56604004 | G26: 66.50943756 | H26: 57.54716873
B27: Pakistan | C27: 25.12077332 | D27: 6.603773594 | E27: 29.24528313 | F27: 20.28301811 | G27: 25 | H27: 22.64151001
B28: Peru | C28: 49.75845337 | D28: 27.83018875 | E28: 35.37735748 | F28: 59.90565872 | G28: 32.54716873 | H28: 22.16981125
B29: Philippines | C29: 43.9613533 | D29: 20.28301811 | E29: 56.13207626 | F29: 53.77358627 | G29: 33.49056625 | H29: 33.49056625
B30: Poland | C30: 65.21739197 | D30: 61.79245377 | E30: 61.79245377 | F30: 74.52830505 | G30: 64.15093994 | H30: 68.39622498
B31: Qatar | C31: 20.28985596 | D31: 83.96226501 | E31: 82.54717255 | F31: 77.35848999 | G31: 79.24528503 | H31: 79.24528503
B32: Romania | C32: 63.768116 | D32: 60.84905624 | E32: 53.30188751 | F32: 63.679245 | G32: 62.26415253 | H32: 55.6603775
B33: Russia | C33: 14.49275398 | D33: 16.03773499 | E33: 25.94339561 | F33: 13.20754719 | G33: 12.26415062 | H33: 19.3396225
B34: Slovakia | C34: 75.36231995 | D34: 59.90565872 | E34: 63.679245 | F34: 76.88679504 | G34: 70.28302002 | H34: 60.37735748
B35: South Africa | C35: 68.59903717 | D35: 19.81132126 | E35: 48.11320877 | F35: 44.3396225 | G35: 54.24528122 | H35: 44.81132126
B36: Sri Lanka | C36: 40.09661865 | D36: 18.86792374 | E36: 35.84905624 | F36: 27.35848999 | G36: 52.35848999 | H36: 40.09434128
B37: Thailand | C37: 31.40096664 | D37: 31.60377312 | E37: 58.01886749 | F37: 58.49056625 | G37: 54.71697998 | H37: 35.84905624
B38: Turkey | C38: 23.18840599 | D38: 13.679245 | E38: 43.86792374 | F38: 43.39622498 | G38: 36.79245377 | H38: 34.90565872
B39: United Arab Emirates | C39: 18.35748863 | D39: 70.28302002 | E39: 88.679245 | F39: 82.07546997 | G39: 78.77358246 | H39: 83.49056244
B40: Venezuela | C40: 6.76328516 | D40: 12.26415062 | E40: 5.188679218 | F40: 2.358490467 | G40: 0.4716981053 | H40: 1.886792421
B41: Vietnam | C41: 13.52657032 | D41: 45.75471878 | E41: 59.43396378 | F41: 36.320755 | G41: 47.64151001 | H41: 45.75471878
B42: Source: World Bank, World Governance Indicators, govindicators.org, accessed 2 October 2023
B43: a The percentile rank indicates the rank of the country among all countries in the world — 0 being the lowest, and 100 the highest. The World Bank calculates the rankings by aggregating the views on the quality of governance provided by a large number of enterprise, citizen, and expert survey respondents. The data is gathered from a number of survey institutes, think tanks, non-governmental organisations, and international organisations.

Sheet RDGovernance indicators.22.SAC
B2: Governance indicators, selected African countries, 2022
C4: Voice and accountability | D4: Political stability | E4: Government effectiveness | F4: Regulatory quality | G4: Rule of law | H4: Control of corruption
B5: Country | C5: —0-100a—
B6: Algeria | C6: 21.73913002 | D6: 19.3396225 | E6: 32.54716873 | F6: 14.15094376 | G6: 22.64151001 | H6: 28.30188751
B7: Angola | C7: 26.57004738 | D7: 22.64151001 | E7: 13.20754719 | F7: 29.71698189 | G7: 16.03773499 | H7: 30.6603775
B8: Botswana | C8: 60.86956406 | D8: 87.26415253 | E8: 67.92453003 | F8: 72.16981506 | G8: 66.03773499 | H8: 74.05660248
B9: Burundi | C9: 10.62801933 | D9: 12.73584938 | E9: 10.37735844 | F9: 17.45282936 | G9: 9.905660629 | H9: 4.245283127
B10: Cameroon | C10: 17.39130402 | D10: 10.84905624 | E10: 18.86792374 | F10: 19.3396225 | G10: 15.56603813 | H10: 13.20754719
B11: Central African Republic | C11: 15.45893764 | D11: 4.245283127 | E11: 4.245283127 | F11: 6.13207531 | G11: 3.773584843 | H11: 8.962264061
B12: Congo (DRC) | C12: 16.90821266 | D12: 6.13207531 | E12: 3.301886797 | F12: 5.660377502 | G12: 4.245283127 | H12: 3.301886797
B13: Congo (Republic) | C13: 15.942029 | D13: 46.22641373 | E13: 8.962264061 | F13: 9.433961868 | G13: 15.09433937 | H13: 7.075471878
B14: Egypt | C14: 9.178744316 | D14: 14.15094376 | E14: 33.96226501 | F14: 24.52830124 | G14: 42.45283127 | H14: 26.41509438
B15: Eritrea | C15: 1.449275374 | D15: 14.62264156 | E15: 3.773584843 | F15: 0.4716981053 | G15: 2.830188751 | H15: 8.018867493
B16: Eswatini | C16: 14.97584534 | D16: 38.20754623 | E16: 26.41509438 | F16: 23.58490562 | G16: 29.24528313 | H16: 26.88679314
B17: Ethiopia | C17: 20.77294731 | D17: 4.716980934 | E17: 24.05660439 | F17: 16.98113251 | G17: 26.41509438 | H17: 36.79245377
B18: Ghana | C18: 59.42028809 | D18: 43.86792374 | E18: 50.47169876 | F18: 44.81132126 | G18: 51.41509247 | H18: 52.83018875
B19: Ivory Coast | C19: 34.78260803 | D19: 26.41509438 | E19: 37.73584747 | F19: 46.22641373 | G19: 35.37735748 | H19: 42.45283127
B20: Kenya | C20: 39.13043594 | D20: 15.09433937 | E20: 41.03773499 | F20: 39.15094376 | G20: 40.56603622 | H20: 24.05660439
B21: Lesotho | C21: 50.24154663 | D21: 41.98113251 | E21: 17.45282936 | F21: 29.24528313 | G21: 33.96226501 | H21: 41.98113251
B22: Liberia | C22: 46.37681198 | D22: 35.84905624 | E22: 8.018867493 | F22: 16.50943375 | G22: 19.3396225 | H22: 20.28301811
B23: Libya | C23: 11.11111069 | D23: 3.773584843 | E23: 2.358490467 | F23: 1.415094376 | G23: 2.358490467 | H23: 3.773584843
B24: Madagascar | C24: 38.16424942 | D24: 25.94339561 | E24: 14.62264156 | F24: 20.75471687 | G24: 18.39622688 | H24: 17.92452812
B25: Malawi | C25: 50.72463608 | D25: 41.50943375 | E25: 20.75471687 | F25: 22.16981125 | G25: 44.3396225 | H25: 30.18867874
B26: Mauritius | C26: 65.70048523 | D26: 75.47169495 | E26: 75.94339752 | F26: 84.43395996 | G26: 77.83018494 | H26: 65.56604004
B27: Morocco | C27: 32.85024261 | D27: 34.43396378 | E27: 47.16981125 | F27: 49.05660248 | G27: 44.81132126 | H27: 41.50943375
B28: Mozambique | C28: 31.884058 | D28: 11.320755 | E28: 25 | F28: 22.64151001 | G28: 16.50943375 | H28: 21.69811249
B29: Namibia | C29: 63.28502274 | D29: 64.15093994 | E29: 55.18867874 | F29: 52.35848999 | G29: 62.73584747 | H29: 60.84905624
B30: Nigeria | C30: 32.36714935 | D30: 7.547169685 | E30: 14.15094376 | F30: 12.26415062 | G30: 19.81132126 | H30: 14.62264156
B31: Rwanda | C31: 22.70531464 | D31: 47.64151001 | E31: 61.320755 | F31: 58.01886749 | G31: 56.13207626 | H31: 70.28302002
B32: Senegal | C32: 54.10628128 | D32: 40.56603622 | E32: 52.83018875 | F32: 41.03773499 | G32: 42.92453003 | H32: 53.77358627
B33: Somalia | C33: 2.898550749 | D33: 0.9433962107 | E33: 1.415094376 | F33: 3.301886797 | G33: 0 | H33: 0.4716981053
B34: South Africa | C34: 68.59903717 | D34: 19.81132126 | E34: 48.11320877 | F34: 44.3396225 | G34: 54.24528122 | H34: 44.81132126
B35: Sudan | C35: 7.246376991 | D35: 5.188679218 | E35: 4.716980934 | F35: 4.716980934 | G35: 10.37735844 | H35: 6.603773594
B36: Tanzania | C36: 29.95169067 | D36: 36.79245377 | E36: 34.43396378 | F36: 30.18867874 | G36: 38.20754623 | H36: 43.39622498
B37: Tunisia | C37: 40.57971191 | D37: 24.05660439 | E37: 41.50943375 | F37: 37.26415253 | G37: 50.94339752 | H37: 47.64151001
B38: Uganda | C38: 26.08695602 | D38: 17.45282936 | E38: 31.13207626 | F38: 33.01886749 | G38: 39.15094376 | H38: 16.50943375
B39: Zambia | C39: 42.99517059 | D39: 50 | E39: 27.83018875 | F39: 32.07546997 | G39: 33.01886749 | H39: 34.43396378
B40: Zimbabwe | C40: 18.84057999 | D40: 16.50943375 | E40: 10.84905624 | F40: 6.603773594 | G40: 11.320755 | H40: 8.490566254
B41: Source: World Bank, World Governance Indicators, govindicators.org, accessed 2 October 2023
B42: a The percentile rank indicates the rank of the country among all countries in the world — 0 being the lowest, and 100 the highest. The World Bank calculates the rankings by aggregating the views on the quality of governance provided by a large number of enterprise, citizen, and expert survey respondents. The data is gathered from a number of survey institutes, think tanks, non-governmental organisations, and international organisations.

Sheet RDEdelman trust barometer.24
C2: Edelman Trust Barometer, selected countries, 2024
C4: Country | D4: Trust in business | E4: Trust in the Government | F4: Trust in the Media | G4: Trust in non-governmental organisations
C5: Argentina | D5: 51 | E5: 21 | F5: 33 | G5: 51
C6: Australia | D6: 58 | E6: 50 | F6: 40 | G6: 58
C7: Brazil | D7: 66 | E7: 42 | F7: 45 | G7: 59
C8: Canada | D8: 57 | E8: 49 | F8: 51 | G8: 55
C9: China | D9: 81 | E9: 85 | F9: 77 | G9: 72
C10: Colombia | D10: 64 | E10: 31 | F10: 39 | G10: 53
C11: France | D11: 53 | E11: 39 | F11: 40 | G11: 56
C12: Germany | D12: 50 | E12: 42 | F12: 46 | G12: 42
C13: India | D13: 82 | E13: 76 | F13: 67 | G13: 77
C14: Indonesia | D14: 80 | E14: 73 | F14: 70 | G14: 69
C15: Ireland | D15: 52 | E15: 45 | F15: 37 | G15: 52
C16: Italy | D16: 57 | E16: 42 | F16: 48 | G16: 52
C17: Japan | D17: 50 | E17: 32 | F17: 33 | G17: 40
C18: Malaysia | D18: 75 | E18: 67 | F18: 60 | G18: 70
C19: Mexico | D19: 70 | E19: 47 | F19: 54 | G19: 64
C20: Netherlands | D20: 65 | E20: 55 | F20: 56 | G20: 49
C21: Russia | D21: N/A | E21: N/A | F21: N/A | G21: N/A
C22: Saudi Arabia | D22: 78 | E22: 86 | F22: 61 | G22: 64
C23: Singapore | D23: 63 | E23: 77 | F23: 60 | G23: 66
C24: South Africa | D24: 62 | E24: 29 | F24: 43 | G24: 61
C25: South Korea | D25: 45 | E25: 41 | F25: 27 | G25: 49
C26: Spain | D26: 56 | E26: 36 | F26: 40 | G26: 53
C27: United Arab Emirates | D27: 78 | E27: 84 | F27: 63 | G27: 69
C28: United Kingdom | D28: 48 | E28: 30 | F28: 31 | G28: 47
C29: United States | D29: 53 | E29: 40 | F29: 39 | G29: 52
C30: Global | D30: 63 | E30: 51 | F30: 50 | G30: 59
C31: Source: The Edelman Trust Barometer 2023, Global Report, January 2024
C32: N/A — Not available.

Sheet Freedom and Democracy

Sheet Freedom in the world.SC.24
C2: Freedom and democracy
C4: Freedom in the world, selected countries, 2024
D6: Political rights | E6: Civil liberties | F6: Freedom status | G6: Freedom of the Internet
C7: Country | D7: —0-7a—
C8: Australia | D8: 38 | E8: 57 | F8: Free | G8: Free
C9: Botswana | D9: 28 | E9: 44 | F9: Free | G9: N/A
C10: Brazil | D10: 30 | E10: 42 | F10: Free | G10: Partly free
C11: Chile | D11: 38 | E11: 56 | F11: Free | G11: N/A
C12: China | D12: -2 | E12: 11 | F12: Not free | G12: Not free
C13: Denmark | D13: 40 | E13: 57 | F13: Free | G13: N/A
C14: Egypt | D14: 6 | E14: 12 | F14: Not free | G14: Not free
C15: France | D15: 38 | E15: 51 | F15: Free | G15: Free
C16: Germany | D16: 39 | E16: 54 | F16: Free | G16: Free
C17: Ghana | D17: 35 | E17: 45 | F17: Free | G17: Partly free
C18: Greece | D18: 35 | E18: 50 | F18: Free | G18: N/A
C19: Hong Kong | D19: 9 | E19: 32 | F19: Partly free | G19: N/A
C20: India | D20: 33 | E20: 33 | F20: Partly free | G20: Partly free
C21: Indonesia | D21: 29 | E21: 28 | F21: Partly free | G21: Partly free
C22: Ireland | D22: 39 | E22: 58 | F22: Free | G22: N/A
C23: Israel | D23: 34 | E23: 40 | F23: Free | G23: N/A
C24: Italy | D24: 36 | E24: 54 | F24: Free | G24: Free
C25: Japan | D25: 40 | E25: 56 | F25: Free | G25: Free
C26: Kazakhstan | D26: 5 | E26: 18 | F26: Not free | G26: Not free
C27: Lithuania | D27: 38 | E27: 51 | F27: Free | G27: N/A
C28: Mexico | D28: 27 | E28: 33 | F28: Partly free | G28: Partly free
C29: Mozambique | D29: 14 | E29: 30 | F29: Partly free | G29: N/A
C30: Nigeria | D30: 20 | E30: 24 | F30: Partly free | G30: Partly free
C31: Pakistan | D31: 14 | E31: 21 | F31: Partly free | G31: Not free
C32: Philippines | D32: 25 | E32: 33 | F32: Partly free | G32: Partly free
C33: Poland | D33: 33 | E33: 47 | F33: Free | G33: N/A
C34: Russia | D34: 4 | E34: 9 | F34: Not free | G34: Not free
C35: Saudi Arabia | D35: 1 | E35: 7 | F35: Not free | G35: Not free
C36: South Africa | D36: 33 | E36: 46 | F36: Free | G36: Free
C37: Spain | D37: 37 | E37: 53 | F37: Free | G37: N/A
C38: Switzerland | D38: 39 | E38: 57 | F38: Free | G38: N/A
C39: Turkey | D39: 17 | E39: 16 | F39: Not free | G39: Not free
C40: Uganda | D40: 10 | E40: 24 | F40: Not free | G40: Partly free
C41: United Kingdom | D41: 38 | E41: 53 | F41: Free | G41: Free
C42: United States | D42: 33 | E42: 50 | F42: Free | G42: Free
C43: Venezuela | D43: 1 | E43: 14 | F43: Not free | G43: Not free
C44: Source: Freedom House, Freedom in the World 2024, Freedom on the Net 2024, www.freedomhouse.org, accessed 12 June 2024
C45: a Each country and territory (out of 195) is assigned two numerical ratings—from 1 to 7— for political rights and civil liberties, with 1 representing the most free and 7 the least free. The average of a country or territory’s political rights and civil liberties ratings determines whether it is Free, Partly Free, or Not Free.

Sheet Democracy index.SC.23
B2: Democracy Indexa, selected countries, 2023
B4: Country | C4: Rank (out of 167) | D4: Overall score 0-10 | E4: Classification
B5: Australia | C5: 14 | D5: 8.66 | E5: Full democracy
B6: Botswana | C6: 33 | D6: 7.73 | E6: Flawed democracy
B7: Brazil | C7: 51 | D7: 6.68 | E7: Flawed democracy
B8: Chile | C8: 25 | D8: 7.98 | E8: Flawed democracy
B9: China | C9: 148 | D9: 2.12 | E9: Authoritarian
B10: Denmark | C10: 6 | D10: 9.28 | E10: Full democracy
B11: Egypt | C11: 127 | D11: 2.93 | E11: Authoritarian
B12: France | C12: 23 | D12: 8.07 | E12: Full democracy
B13: Germany | C13: 12 | D13: 8.8 | E13: Full democracy
B14: Ghana | C14: 65 | D14: 6.3 | E14: Flawed democracy
B15: Greece | C15: 20 | D15: 8.14 | E15: Full democracy
B16: India | C16: 41 | D16: 7.18 | E16: Flawed democracy
B17: Indonesia | C17: 56 | D17: 6.53 | E17: Flawed democracy
B18: Ireland | C18: 7 | D18: 9.28 | E18: Full democracy
B19: Israel | C19: 30 | D19: 7.8 | E19: Flawed democracy
B20: Italy | C20: 34 | D20: 7.69 | E20: Flawed democracy
B21: Japan | C21: 16 | D21: 8.4 | E21: Full democracy
B22: Kazakhstan | C22: 120 | D22: 3.08 | E22: Authoritarian
B23: Lithuania | C23: 39 | D23: 7.31 | E23: Flawed democracy
B24: Mozambique | C24: 113 | D24: 3.51 | E24: Authoritarian
B25: Nigeria | C25: 104 | D25: 4.23 | E25: Hybrid regime
B26: Pakistan | C26: 118 | D26: 3.25 | E26: Hybrid regime
B27: Philippines | C27: 53 | D27: 6.66 | E27: Flawed democracy
B28: Poland | C28: 41 | D28: 7.18 | E28: Flawed democracy
B29: Russia | C29: 144 | D29: 2.22 | E29: Authoritarian
B30: Saudi Arabia | C30: 150 | D30: 2.08 | E30: Authoritarian
B31: South Africa | C31: 47 | D31: 7.05 | E31: Flawed democracy
B32: Spain | C32: 23 | D32: 8.07 | E32: Full democracy
B33: Switzerland | C33: 8 | D33: 9.14 | E33: Full democracy
B34: Turkey | C34: 102 | D34: 4.33 | E34: Hybrid regime
B35: Uganda | C35: 99 | D35: 4.49 | E35: Hybrid regime
B36: United Kingdom | C36: 18 | D36: 8.28 | E36: Full democracy
B37: United States | C37: 29 | D37: 7.85 | E37: Flawed democracy
B38: Venezuela | C38: 142 | D38: 2.31 | E38: Authoritarian
B39: Source: The Economist Intelligence Unit, Democracy Index 2023, 12 June 2024, pp7-11
B40: a The Democracy Index is calculated by analysing 60 indicators which are grouped into five categories: electoral process and pluralism, civil liberties, the functioning of government, political participation, and political culture. In 2023, South Africa was ranked 47th out of 167, with an overall score of 7.05 out of a possible 10. The Index ranked South Africa as a flawed democracy.

Sheet Press freedom.SC.24
B2: Press freedoma, selected countries, 2024
C4: Country | D4: Rank (out of 180) | E4: Scoreb
C5: Australia | D5: 39 | E5: 78.42
C6: Botswana | D6: 79 | E6: 59.78
C7: Brazil | D7: 82 | E7: 58.59
C8: Chile | D8: 52 | E8: 67.32
C9: China | D9: 172 | E9: 23.36
C10: Denmark | D10: 2 | E10: 89.6
C11: Egypt | D11: 170 | E11: 25.1
C12: France | D12: 21 | E12: 78.65
C13: Germany | D13: 10 | E13: 83.84
C14: Ghana | D14: 50 | E14: 67.71
C15: Greece | D15: 88 | E15: 57.15
C16: Hong Kong | D16: 135 | E16: 43.06
C17: India | D17: 159 | E17: 31.28
C18: Indonesia | D18: 111 | E18: 51.15
C19: Ireland | D19: 8 | E19: 85.59
C20: Israel | D20: 101 | E20: 53.23
C21: Italy | D21: 46 | E21: 69.8
C22: Japan | D22: 70 | E22: 62.12
C23: Kazakhstan | D23: 142 | E23: 41.11
C24: Lithuania | D24: 13 | E24: 81.73
C25: Mexico | D25: 121 | E25: 47.01
C26: Mozambique | D26: 105 | E26: 52.42
C27: Nigeria | D27: 112 | E27: 51.03
C28: Pakistan | D28: 152 | E28: 33.9
C29: Philippines | D29: 134 | E29: 43.36
C30: Poland | D30: 47 | E30: 69.17
C31: Russia | D31: 162 | E31: 29.86
C32: Saudi Arabia | D32: 166 | E32: 27.14
C33: South Africa | D33: 38 | E33: 73.73
C34: Spain | D34: 30 | E34: 76.01
C35: Switzerland | D35: 9 | E35: 84.01
C36: Turkey | D36: 175 | E36: 22.01
C37: Uganda | D37: 128 | E37: 46
C38: United Kingdom | D38: 23 | E38: 77.51
C39: United States | D39: 55 | E39: 66.59
C40: Venezuela | D40: 156 | E40: 33.06
B41: Source: Reporters Without Borders, World Press Freedom Index 2024, www.rsf.org, accessed 12 June 2024
B42: a The Press Freedom Index is based partly on a questionnaire that looks at seven general criteria. These criteria take into account pluralism or the variety of opinions in the media; media independence; environment and self-censorship; the legislative framework; transparency; news and information infrastructure; levels of violence and harassment during the assessment period, and abuses. Every kind of violation affecting journalists (including murders, imprisonment, physical attacks, and threats) is also taken into account. The Index does not look at human rights violations in general, just press freedom violations.
B43: b Scores range between 0 and 100. A lower score indicates a freer press, and vice versa.

Sheet State fragility

Sheet Fragile state SC.24
C2: State fragility
C4: State fragilitya, selected countries, 2024
D6: Country | E6: Rank (out of 179) | F6: Score (out of 120)
D7: Australia | E7: 169 | F7: 19.6
D8: Botswana | E8: 124 | F8: 53.6
D9: Brazil | E9: 78 | F9: 70.3
D10: Chile | E10: 146 | F10: 41.1
D11: China | E11: 99 | F11: 64.4
D12: Denmark | E12: 175 | F12: 15.9
D13: Egypt | E13: 44 | F13: 82.8
D14: France | E14: 162 | F14: 28.3
D15: Germany | E15: 166 | F15: 24
D16: Ghana | E16: 107 | F16: 60.8
D17: Greece | E17: 121 | F17: 54.7
D18: India | E18: 75 | F18: 72.3
D19: Indonesia | E19: 102 | F19: 63.7
D20: Ireland | E20: 172 | F20: 18.6
D21: Israel | E21: 129 | F21: 51.5
D22: Italy | E22: 146 | F22: 41.1
D23: Japan | E23: 160 | F23: 30.2
D24: Kazakhstan | E24: 115 | F24: 57.8
D25: Lithuania | E25: 153 | F25: 37.4
D26: Mexico | E26: 83 | F26: 69
D27: Mozambique | E27: 25 | F27: 92.5
D28: Nigeria | E28: 15 | F28: 96.6
D29: Pakistan | E29: 27 | F29: 91.7
D30: Philippines | E30: 64 | F30: 75.1
D31: Poland | E31: 144 | F31: 41.7
D32: Russia | E32: 48 | F32: 81.6
D33: Saudi Arabia | E33: 103 | F33: 63.2
D34: South Africa | E34: 80 | F34: 69.6
D35: Spain | E35: 143 | F35: 44
D36: Switzerland | E36: 174 | F36: 16.2
D37: Turkey | E37: 41 | F37: 84
D38: Uganda | E38: 28 | F38: 91.1
D39: United Kingdom | E39: 148 | F39: 40.8
D40: United States | E40: 141 | F40: 44.5
D41: Venezuela | E41: 30 | F41: 89
C42: Source: Fund for Peace, Fragile State Index, www.fragilestatesindex.org, accessed 9 July 2024
C43: a The Fragile States Index is an annual ranking of levels of state weakness or strength. The Index relies on conflict assessment and a comprehensive social science methodology. Scores are apportioned for every country, based on twelve key political, social and economic indicators and over 100 sub-indicators. A low score indicates that a state is less fragile and vice versa. For example, Australia, with a score of 19.6 out of 120, is a less fragile state than South Africa, which has a score of 69.6 out of 120. With regards to ranking, the greater the number, the more stable the country. For example, Australia, with a ranking of 168, is more stable than South Africa, which has a ranking of 78.
C44: N/A — Not available.

Sheet Fragile state EM.24
B2: State fragility, emerging markets, 2024
C4: Country | D4: Rank (out of 179) | E4: Score (out of 120)
C5: Brazil | D5: 78 | E5: 70.3
C6: Bulgaria | D6: 133 | E6: 49.4
C7: Chile | D7: 146 | E7: 41.1
C8: China | D8: 99 | E8: 64.4
C9: Colombia | D9: 63 | E9: 75.6
C10: Czech Republic | D10: 152 | E10: 37.7
C11: Egypt | D11: 44 | E11: 82.8
C12: Estonia | D12: 154 | E12: 36.5
C13: Greece | D13: 121 | E13: 54.7
C14: Hungary | D14: 138 | E14: 46.2
C15: India | D15: 75 | E15: 72.3
C16: Indonesia | D16: 102 | E16: 63.7
C17: Jordan | D17: 69 | E17: 74.3
C18: Kuwait | D18: 134 | E18: 49.3
C19: Latvia | D19: 145 | E19: 41.4
C20: Lithuania | D20: 153 | E20: 37.4
C21: Malaysia | D21: 126 | E21: 53.1
C22: Mauritius | D22: 151 | E22: 37.8
C23: Mexico | D23: 83 | E23: 69
C24: Morocco | D24: 84 | E24: 68.8
C25: Oman | D25: 137 | E25: 47.4
C26: Pakistan | D26: 27 | E26: 91.7
C27: Peru | D27: 76 | E27: 72
C28: Philippines | D28: 64 | E28: 75.1
C29: Poland | D29: 144 | E29: 41.7
C30: Qatar | D30: 149 | E30: 39.8
C31: Romania | D31: 130 | E31: 51
C32: Russia | D32: 48 | E32: 81.6
C33: Slovakia | D33: 155 | E33: 35.3
C34: South Africa | D34: 80 | E34: 69.6
C35: Sri Lanka | D35: 33 | E35: 88.2
C36: Thailand | D36: 95 | E36: 66.2
C37: Turkey | D37: 41 | E37: 84
C38: United Arab Emirates | D38: 156 | E38: 34.7
C39: Venezuela | D39: 30 | E39: 89
C40: Vietnam | D40: 119 | E40: 56.2
B41: Source: Fund for Peace, Fragile State Index, www.fragilestatesindex.org, accessed 9 July 2024

Sheet Fragile state SAC.24
C2: State fragility, selected African countries, 2024
D4: Country | E4: Rank (out of 179) | F4: Score (out of 120)
D5: Algeria | E5: 87 | F5: 68.6
D6: Angola | E6: 38 | F6: 85.6
D7: Botswana | E7: 124 | F7: 53.6
D8: Burundi | E8: 24 | F8: 92.6
D9: Cameroon | E9: 20 | F9: 94.3
D10: Central African Republic | E10: 7 | F10: 103.9
D11: Congo (DRC) | E11: 5 | F11: 106.7
D12: Congo (Republic) | E12: 29 | F12: 90.2
D13: Egypt | E13: 44 | F13: 82.8
D14: Eritrea | E14: 26 | F14: 92.1
D15: Eswatini | E15: 58 | F15: 77.6
D16: Ethiopia | E16: 12 | F16: 98.1
D17: Ghana | E17: 106 | F17: 60.8
D18: Ivory Coast | E18: 39 | F18: 85.3
D19: Kenya | E19: 36 | F19: 86.5
D20: Lesotho | E20: 68 | F20: 74.6
D21: Liberia | E21: 35 | F21: 86.9
D22: Libya | E22: 16 | F22: 96.5
D23: Madagascar | E23: 53 | F23: 79.8
D24: Malawi | E24: 52 | F24: 80.5
D25: Mauritius | E25: 151 | F25: 37.8
D26: Morocco | E26: 84 | F26: 68.8
D27: Mozambique | E27: 25 | F27: 92.5
D28: Namibia | E28: 109 | F28: 59.3
D29: Nigeria | E29: 15 | F29: 96.6
D30: Rwanda | E30: 46 | F30: 81.8
D31: Senegal | E31: 70 | F31: 74.2
D32: Somalia | E32: 1 | F32: 111.3
D33: South Africa | E33: 80 | F33: 69.6
D34: Sudan | E34: 2 | F34: 109.3
D35: Tanzania | E35: 62 | F35: 75.7
D36: Tunisia | E36: 92 | F36: 67.2
D37: Uganda | E37: 28 | F37: 91.1
D38: Zambia | E38: 50 | F38: 81.2
D39: Zimbabwe | E39: 18 | F39: 95.7
C40: Source: Fund for Peace, Fragile State Index, www.fragilestatesindex.org, accessed 9 July 2024

Sheet Macros
A2: A | B2: HEAD 1 | C2: HELVETICA NEUE 21 pt
A4: B | B4: HEAD 2 | C4: Helvetica Neue 18 pt
A6: C | B6: HEAD 3 | C6: Helvetica Neue 16 pt
A8: D | B8: HEAD 4 | C8: Helvetica Neue 14 pt
A10: E | B10: HEAD 5 | C10: Lucia 12 pt
A12: F | B12: HEAD 6 | C12: Helvetica Neue 13 pt
A14: G | B14: HEAD 7 | C14: Helvetica Neue 12 pt
A16: H | B16: HEAD 8 | C16: Helvetica Neue 11 pt | D16: Source, Footnote, Text
